Workbook

Sheet Баланс энергии
A3: Баланс электрической энергии по сетям ВН, СН1, СН2, и НН
A4: =#REF! -> 
AY5: млн. кВт.ч.
A6: № п.п. | B6: Показатели | C6: Принято регулирующим органом на 2017 год | H6: Факт за 1 полугодие 2017 года | M6: Факт за 2 полугодие 2017 года | R6: Факт за 2017 год | W6: Принято регулирующим органом на 1 полугодие 2018 года | AB6: Принято регулирующим органом на 2 полугодие 2018 года | AG6: Принято регулирующим органом на 2018 год | AL6: По данным организации на 1 полугодие 2019 года | AQ6: По данным организации на 2 полугодие 2019 года | AV6: По данным организации на 2019 год | BA6: Принято регулирующим органом на 1 полугодие 2019 года | BF6: Принято регулирующим органом на 2 полугодие 2019 года | BK6: Принято регулирующим органом на 2019 год
C7: Всего | D7: ВН | E7: СН1 | F7: СН2 | G7: НН | H7: Всего | I7: ВН | J7: СН1 | K7: СН2 | L7: НН | M7: Всего | N7: ВН | O7: СН1 | P7: СН2 | Q7: НН | R7: Всего | S7: ВН | T7: СН1 | U7: СН2 | V7: НН | W7: Всего | X7: ВН | Y7: СН1 | Z7: СН2 | AA7: НН | AB7: Всего | AC7: ВН | AD7: СН1 | AE7: СН2 | AF7: НН | AG7: Всего | AH7: ВН | AI7: СН1 | AJ7: СН2 | AK7: НН | AL7: Всего | AM7: ВН | AN7: СН1 | AO7: СН2 | AP7: НН | AQ7: Всего | AR7: ВН | AS7: СН1 | AT7: СН2 | AU7: НН | AV7: Всего | AW7: ВН | AX7: СН1 | AY7: СН2 | AZ7: НН | BA7: Всего | BB7: ВН | BC7: СН1 | BD7: СН2 | BE7: НН | BF7: Всего | BG7: ВН | BH7: СН1 | BI7: СН2 | BJ7: НН | BK7: Всего | BL7: ВН | BM7: СН1 | BN7: СН2 | BO7: НН
A8: 1 | B8: 2 | C8: 3 | D8: 4 | E8: 5 | F8: 6 | G8: 7 | H8: 8 | I8: 9 | J8: 10 | K8: 11 | L8: 12 | M8: 13 | N8: 14 | O8: 15 | P8: 16 | Q8: 17 | R8: 18 | S8: 19 | T8: 20 | U8: 21 | V8: 22 | W8: 23 | X8: 24 | Y8: 25 | Z8: 26 | AA8: 27 | AB8: 28 | AC8: 29 | AD8: 30 | AE8: 31 | AF8: 32 | AG8: 33 | AH8: 34 | AI8: 35 | AJ8: 36 | AK8: 37 | AL8: 38 | AM8: 39 | AN8: 40 | AO8: 41 | AP8: 42 | AQ8: 43 | AR8: 44 | AS8: 45 | AT8: 46 | AU8: 47 | AV8: 48 | AW8: 49 | AX8: 50 | AY8: 51 | AZ8: 52 | BA8: 53 | BB8: 54 | BC8: 55 | BD8: 56 | BE8: 57 | BF8: 58 | BG8: 59 | BH8: 60 | BI8: 61 | BJ8: 62 | BK8: 63 | BL8: 64 | BM8: 65 | BN8: 66 | BO8: 67 | BP8: СПБ всего | BQ8: 1 пол | BR8: 2 пол
A9: 1. | B9: Поступление эл.энергии в сеть , ВСЕГО | C9: =C19+C21+C22 -> 139.88078 | D9: =D15+D16+D17+D18 -> 139.88078 | E9: =E10+E15+E16+E17+E18 -> 0 | F9: =F10+F15+F16+F17+F18 -> 139.88078 | G9: =G10+G15+G16+G17+G18 -> 76.85766546 | H9: =H19+H21+H22 -> 73.362 | I9: =I15+I16+I17+I18 -> 73.362 | J9: =J10+J15+J16+J17+J18 -> 0 | K9: =K10+K15+K16+K17+K18 -> 73.362 | L9: =L10+L15+L16+L17+L18 -> 38.8084786 | M9: =M19+M21+M22 -> 70.01 | N9: =N15+N16+N17+N18 -> 70.01 | O9: =O10+O15+O16+O17+O18 -> 0 | P9: =P10+P15+P16+P17+P18 -> 70.01 | Q9: =Q10+Q15+Q16+Q17+Q18 -> 24.778353 | R9: =R19+R21+R22 -> 143.372 | S9: =S15+S16+S17+S18 -> 143.372 | T9: =T10+T15+T16+T17+T18 -> 0 | U9: =U10+U15+U16+U17+U18 -> 78.969 | V9: =V10+V15+V16+V17+V18 -> 65.0668088 | W9: =W19+W21+W22 -> 71.12735054 | X9: =X15+X16+X17+X18 -> 71.12735054 | Y9: =Y10+Y15+Y16+Y17+Y18 -> 0 | Z9: =Z10+Z15+Z16+Z17+Z18 -> 71.12735054 | AA9: =AA10+AA15+AA16+AA17+AA18 -> 37.22529534 | AB9: =AB19+AB21+AB22 -> 74.25090446 | AC9: =AC15+AC16+AC17+AC18 -> 74.25090446 | AD9: =AD10+AD15+AD16+AD17+AD18 -> 0 | AE9: =AE10+AE15+AE16+AE17+AE18 -> 74.25090446 | AF9: =AF10+AF15+AF16+AF17+AF18 -> 38.86004225 | AG9: =AG19+AG21+AG22 -> 145.378255 | AH9: =AH15+AH16+AH17+AH18 -> 145.378255 | AI9: =AI10+AI15+AI16+AI17+AI18 -> 0 | AJ9: =AJ10+AJ15+AJ16+AJ17+AJ18 -> 145.378255 | AK9: =AK10+AK15+AK16+AK17+AK18 -> 76.08533759 | AL9: =AL19+AL21+AL22 -> 71.232 | AM9: =AM15+AM16+AM17+AM18 -> 70.798 | AN9: =AN10+AN15+AN16+AN17+AN18 -> 0.434 | AO9: =AO10+AO15+AO16+AO17+AO18 -> 71.232 | AP9: =AP10+AP15+AP16+AP17+AP18 -> 37.5561664 | AQ9: =AQ19+AQ21+AQ22 -> 74.14 | AR9: =AR15+AR16+AR17+AR18 -> 73.688 | AS9: =AS10+AS15+AS16+AS17+AS18 -> 0.452 | AT9: =AT10+AT15+AT16+AT17+AT18 -> 74.14 | AU9: =AU10+AU15+AU16+AU17+AU18 -> 39.088728 | AV9: =AV19+AV21+AV22 -> 145.372 | AW9: =AW15+AW16+AW17+AW18 -> 144.487 | AX9: =AX10+AX15+AX16+AX17+AX18 -> 0.885 | AY9: =AY10+AY15+AY16+AY17+AY18 -> 145.372 | AZ9: =AZ10+AZ15+AZ16+AZ17+AZ18 -> 76.6438944 | BA9: =BA19+BA21+BA22 -> 75.01833612 | BB9: =BB15+BB16+BB17+BB18 -> 74.56160104 | BC9: =BC10+BC15+BC16+BC17+BC18 -> 0.4567350828 | BD9: =BD10+BD15+BD16+BD17+BD18 -> 75.01833612 | BE9: =BE10+BE15+BE16+BE17+BE18 -> 39.46067331 | BF9: =BF19+BF21+BF22 -> 70.35363388 | BG9: =BG15+BG16+BG17+BG18 -> 69.92529896 | BH9: =BH10+BH15+BH16+BH17+BH18 -> 0.4283349172 | BI9: =BI10+BI15+BI16+BI17+BI18 -> 70.35363388 | BJ9: =BJ10+BJ15+BJ16+BJ17+BJ18 -> 37.18349867 | BK9: =BK19+BK21+BK22 -> 145.37197 | BL9: =BL15+BL16+BL17+BL18 -> 144.4869 | BM9: =BM10+BM15+BM16+BM17+BM18 -> 0.88507 | BN9: =BN10+BN15+BN16+BN17+BN18 -> 145.37197 | BO9: =BO10+BO15+BO16+BO17+BO18 -> 76.64417197 | BP9: 145371.97 | BQ9: 75018.33612 | BR9: 70353.63388
A10: 1.1. | B10: из смежной сети, всего | C10: х | D10: х | E10: =E12 -> 0 | F10: =F12+F13 -> 139.88078 | G10: =G12+G13+G14 -> 76.85766546 | H10: х | I10: х | J10: =J12 -> 0 | K10: =K12+K13 -> 73.362 | L10: =L12+L13+L14 -> 38.8084786 | M10: х | N10: х | O10: =O12 -> 0 | P10: =P12+P13 -> 70.01 | Q10: =Q12+Q13+Q14 -> 24.778353 | R10: х | S10: х | T10: =T12 -> 0 | U10: =U12+U13 -> 78.969 | V10: =V12+V13+V14 -> 65.0668088 | W10: х | X10: х | Y10: =Y12 -> 0 | Z10: =Z12+Z13 -> 71.12735054 | AA10: =AA12+AA13+AA14 -> 37.22529534 | AB10: х | AC10: х | AD10: =AD12 -> 0 | AE10: =AE12+AE13 -> 74.25090446 | AF10: =AF12+AF13+AF14 -> 38.86004225 | AG10: х | AH10: х | AI10: =AI12 -> 0 | AJ10: =AJ12+AJ13 -> 145.378255 | AK10: =AK12+AK13+AK14 -> 76.08533759 | AL10: х | AM10: х | AN10: =AN12 -> 0 | AO10: =AO12+AO13 -> 71.232 | AP10: =AP12+AP13+AP14 -> 37.5561664 | AQ10: х | AR10: х | AS10: =AS12 -> 0 | AT10: =AT12+AT13 -> 74.14 | AU10: =AU12+AU13+AU14 -> 39.088728 | AV10: х | AW10: х | AX10: =AX12 -> 0 | AY10: =AY12+AY13 -> 145.372 | AZ10: =AZ12+AZ13+AZ14 -> 76.6438944 | BA10: х | BB10: х | BC10: =BC12 -> 0 | BD10: =BD12+BD13 -> 75.01833612 | BE10: =BE12+BE13+BE14 -> 39.46067331 | BF10: х | BG10: х | BH10: =BH12 -> 0 | BI10: =BI12+BI13 -> 70.35363388 | BJ10: =BJ12+BJ13+BJ14 -> 37.18349867 | BK10: х | BL10: х | BM10: =BM12 -> 0 | BN10: =BN12+BN13 -> 145.37197 | BO10: =BO12+BO13+BO14 -> 76.64417197
B11: в том числе из сети | C11: х | D11: х | E11: х | F11: х | G11: х | H11: х | I11: х | J11: х | K11: х | L11: х | M11: х | N11: х | O11: х | P11: х | Q11: х | R11: х | S11: х | T11: х | U11: х | V11: х | W11: х | X11: х | Y11: х | Z11: х | AA11: х | AB11: х | AC11: х | AD11: х | AE11: х | AF11: х | AG11: х | AH11: х | AI11: х | AJ11: х | AK11: х | AL11: х | AM11: х | AN11: х | AO11: х | AP11: х | AQ11: х | AR11: х | AS11: х | AT11: х | AU11: х | AV11: х | AW11: х | AX11: х | AY11: х | AZ11: х | BA11: х | BB11: х | BC11: х | BD11: х | BE11: х | BF11: х | BG11: х | BH11: х | BI11: х | BJ11: х | BK11: х | BL11: х | BM11: х | BN11: х | BO11: х
A12: 1.1.1. | B12: ВН | C12: х | D12: х | F12: =D9-D19-D21-D22-E12-G12 -> 139.88078 | H12: х | I12: х | K12: =I9-I19-I21-I22-J12-L12 -> 73.362 | M12: х | N12: х | P12: =N9-N19-N21-N22-O12-Q12 -> 70.01 | R12: х | S12: х | U12: =S9-S19-S21-S22-T12-V12 -> 143.372 | W12: х | X12: х | Z12: =X9-X19-X21-X22-Y12-AA12 -> 71.12735054 | AB12: х | AC12: х | AE12: =AC9-AC19-AC21-AC22-AD12-AF12 -> 74.25090446 | AG12: х | AH12: х | AJ12: =AH9-AH19-AH21-AH22-AI12-AK12 -> 145.378255 | AL12: х | AM12: х | AO12: =AM9-AM19-AM21-AM22-AN12-AP12 -> 70.798 | AQ12: х | AR12: х | AT12: =AR9-AR19-AR21-AR22-AS12-AU12 -> 73.688 | AV12: х | AW12: х | AY12: =AW9-AW19-AW21-AW22-AX12-AZ12 -> 144.487 | BA12: х | BB12: х | BD12: =BB9-BB19-BB21-BB22-BC12-BE12 -> 74.56160104 | BF12: х | BG12: х | BI12: =BG9-BG19-BG21-BG22-BH12-BJ12 -> 69.92529896 | BK12: х | BL12: х | BN12: =BL9-BL19-BL21-BL22-BM12-BO12 -> 144.4869
A13: 1.1.2. | B13: СН1 | C13: х | D13: х | E13: х | F13: =E9-E19-E21-E22-G13 -> 0 | H13: х | I13: х | J13: х | K13: =J9-J19-J21-J22-L13 -> 0 | M13: х | N13: х | O13: х | P13: =O9-O19-O21-O22-Q13 -> 0 | R13: х | S13: х | T13: х | U13: =T9-T19-T21-T22-V13 -> -64.403 | V13: 64.403 | W13: х | X13: х | Y13: х | Z13: =Y9-Y19-Y21-Y22-AA13 -> 0 | AB13: х | AC13: х | AD13: х | AE13: =AD9-AD19-AD21-AD22-AF13 -> 0 | AG13: х | AH13: х | AI13: х | AJ13: =AI9-AI19-AI21-AI22-AK13 -> 0 | AL13: х | AM13: х | AN13: х | AO13: =AN9-AN19-AN21-AN22-AP13 -> 0.434 | AQ13: х | AR13: х | AS13: х | AT13: =AS9-AS19-AS21-AS22-AU13 -> 0.452 | AV13: х | AW13: х | AX13: х | AY13: =AX9-AX19-AX21-AX22-AZ13 -> 0.885 | BA13: х | BB13: х | BC13: х | BD13: =BC9-BC19-BC21-BC22-BE13 -> 0.4567350828 | BF13: х | BG13: х | BH13: х | BI13: =BH9-BH19-BH21-BH22-BJ13 -> 0.4283349172 | BK13: х | BL13: х | BM13: х | BN13: =BM9-BM19-BM21-BM22-BO13 -> 0.88507
A14: 1.1.3. | B14: СН2 | C14: х | D14: х | E14: х | F14: х | G14: =F9-F19-F21-F22 -> 76.85766546 | H14: х | I14: х | J14: х | K14: х | L14: =K9-K19-K21-K22 -> 38.8084786 | M14: х | N14: х | O14: х | P14: х | Q14: =P9-P19-P21-P22 -> 24.778353 | R14: х | S14: х | T14: х | U14: х | V14: =U9-U19-U21-U22 -> 0.6638088 | W14: х | X14: х | Y14: х | Z14: х | AA14: =Z9-Z19-Z21-Z22 -> 37.22529534 | AB14: х | AC14: х | AD14: х | AE14: х | AF14: =AE9-AE19-AE21-AE22 -> 38.86004225 | AG14: х | AH14: х | AI14: х | AJ14: х | AK14: =AJ9-AJ19-AJ21-AJ22 -> 76.08533759 | AL14: х | AM14: х | AN14: х | AO14: х | AP14: =AO9-AO19-AO21-AO22 -> 37.5561664 | AQ14: х | AR14: х | AS14: х | AT14: х | AU14: =AT9-AT19-AT21-AT22 -> 39.088728 | AV14: х | AW14: х | AX14: х | AY14: х | AZ14: =AY9-AY19-AY21-AY22 -> 76.6438944 | BA14: х | BB14: х | BC14: х | BD14: х | BE14: =BD9-BD19-BD21-BD22 -> 39.46067331 | BF14: х | BG14: х | BH14: х | BI14: х | BJ14: =BI9-BI19-BI21-BI22 -> 37.18349867 | BK14: х | BL14: х | BM14: х | BN14: х | BO14: =BN9-BN19-BN21-BN22 -> 76.64417197
A15: 1.2. | B15: от электростанций | C15: =SUM(D15:G15) -> 0 | H15: =SUM(I15:L15) -> 0 | M15: =SUM(N15:Q15) -> 0 | R15: =SUM(S15:V15) -> 0 | W15: =SUM(X15:AA15) -> 0 | AB15: =SUM(AC15:AF15) -> 0 | AG15: =SUM(AH15:AK15) -> 0 | AL15: =SUM(AM15:AP15) -> 0 | AQ15: =SUM(AR15:AU15) -> 0 | AV15: =SUM(AW15:AZ15) -> 0 | BA15: =SUM(BB15:BE15) -> 0 | BF15: =SUM(BG15:BJ15) -> 0 | BK15: =SUM(BL15:BO15) -> 0
A16: 1.3. | B16: от ОАО "ФСК ЕЭС" | C16: =SUM(D16:G16) -> 139.88078 | D16: 139.88078 | H16: =SUM(I16:L16) -> 73.362 | I16: 73.362 | M16: =SUM(N16:Q16) -> 70.01 | N16: 70.01 | R16: =SUM(S16:V16) -> 143.372 | S16: 143.372 | W16: =SUM(X16:AA16) -> 71.12735054 | X16: 71.12735054 | AB16: =SUM(AC16:AF16) -> 74.25090446 | AC16: 74.25090446 | AG16: =SUM(AH16:AK16) -> 145.378255 | AH16: =X16+AC16 -> 145.378255 | AL16: =SUM(AM16:AP16) -> 70.798 | AM16: 70.798 | AQ16: =SUM(AR16:AU16) -> 73.688 | AR16: 73.688 | AV16: =SUM(AW16:AZ16) -> 144.487 | AW16: 144.487 | BA16: =SUM(BB16:BE16) -> 74.56160104 | BB16: =74561.6010402973/1000 -> 74.56160104 | BF16: =SUM(BG16:BJ16) -> 69.92529896 | BG16: =69925.2989597027/1000 -> 69.92529896 | BK16: =SUM(BL16:BO16) -> 144.4869 | BL16: =144486.9/1000 -> 144.4869
A17: 1.4. | B17: от филиала "Владимирэнерго" ОАО "МРСК Центра и Приволжья" | C17: =SUM(D17:G17) -> 0 | H17: =SUM(I17:L17) -> 0 | M17: =SUM(N17:Q17) -> 0 | R17: =SUM(S17:V17) -> 0 | W17: =SUM(X17:AA17) -> 0 | AB17: =SUM(AC17:AF17) -> 0 | AG17: =SUM(AH17:AK17) -> 0 | AL17: =SUM(AM17:AP17) -> 0.434 | AN17: 0.434 | AQ17: =SUM(AR17:AU17) -> 0.452 | AS17: 0.452 | AV17: =SUM(AW17:AZ17) -> 0.885 | AX17: 0.885 | BA17: =SUM(BB17:BE17) -> 0.4567350828 | BC17: =456.735082784225/1000 -> 0.4567350828 | BF17: =SUM(BG17:BJ17) -> 0.4283349172 | BH17: =428.334917215776/1000 -> 0.4283349172 | BK17: =SUM(BL17:BO17) -> 0.88507 | BM17: 0.88507
A18: 1.5. | B18: от других сетевых организаций | C18: =SUM(D18:G18) -> 0 | H18: =SUM(I18:L18) -> 0 | M18: =SUM(N18:Q18) -> 0 | R18: =SUM(S18:V18) -> 0 | W18: =SUM(X18:AA18) -> 0 | AB18: =SUM(AC18:AF18) -> 0 | AG18: =SUM(AH18:AK18) -> 0 | AL18: =SUM(AM18:AP18) -> 0 | AQ18: =SUM(AR18:AU18) -> 0 | AV18: =SUM(AW18:AZ18) -> 0 | BA18: =SUM(BB18:BE18) -> 0 | BF18: =SUM(BG18:BJ18) -> 0 | BK18: =SUM(BL18:BO18) -> 0
A19: 2. | B19: Потери электроэнергии в сети | C19: =SUM(D19:G19) -> 18.87131266 | D19: =D9*D20/100 -> 0 | E19: =E9*E20/100 -> 0 | F19: =F9*F20/100 -> 9.064274544 | G19: =G9*G20/100 -> 9.807038112 | H19: =SUM(I19:L19) -> 8.753496815 | I19: =I9*I20/100 -> 0 | J19: =J9*J20/100 -> 0 | K19: =K9*K20/100 -> 4.7465214 | L19: =L9*L20/100 -> 4.006975415 | M19: =SUM(N19:Q19) -> 7.693842678 | N19: =N9*N20/100 -> 0 | O19: =O9*O20/100 -> 0 | P19: =P9*P20/100 -> 4.529647 | Q19: =Q9*Q20/100 -> 3.164195678 | R19: =SUM(S19:V19) -> 13.42622268 | S19: =S9*S20/100 -> 0 | T19: =T9*T20/100 -> 0 | U19: =U9*U20/100 -> 5.1171912 | V19: =V9*V20/100 -> 8.309031484 | W19: =SUM(X19:AA19) -> 9.359 | X19: =X9*X20/100 -> 0 | Y19: =Y9*Y20/100 -> 0 | Z19: =Z9*Z20/100 -> 4.609052315 | AA19: =AA9*AA20/100 -> 4.749947685 | AB19: =SUM(AC19:AF19) -> 9.77 | AC19: =AC9*AC20/100 -> 0 | AD19: =AD9*AD20/100 -> 0 | AE19: =AE9*AE20/100 -> 4.811458609 | AF19: =AF9*AF20/100 -> 4.958541391 | AG19: =SUM(AH19:AK19) -> 19.129 | AH19: =AH9*AH20/100 -> 0 | AI19: =AI9*AI20/100 -> 0 | AJ19: =AJ9*AJ20/100 -> 9.420510924 | AK19: =AK9*AK20/100 -> 9.708489076 | AL19: =SUM(AM19:AP19) -> 9.408000433 | AM19: =AM9*AM20/100 -> 0 | AN19: =AN9*AN20/100 -> 0 | AO19: =AO9*AO20/100 -> 4.6158336 | AP19: =AP9*AP20/100 -> 4.792166833 | AQ19: =SUM(AR19:AU19) -> 9.791993693 | AR19: =AR9*AR20/100 -> 0 | AS19: =AS9*AS20/100 -> 0 | AT19: =AT9*AT20/100 -> 4.804272 | AU19: =AU9*AU20/100 -> 4.987721693 | AV19: =SUM(AW19:AZ19) -> 19.19986653 | AW19: =AW9*AW20/100 -> 0 | AX19: =AX9*AX20/100 -> 0 | AY19: =AY9*AY20/100 -> 9.4201056 | AZ19: =AZ9*AZ20/100 -> 9.779760925 | BA19: =SUM(BB19:BE19) -> 9.7142 | BB19: =BB9*BB20/100 -> 0 | BC19: =BC9*BC20/100 -> 0 | BD19: =BD9*BD20/100 -> 4.861188181 | BE19: =BE9*BE20/100 -> 4.853011819 | BF19: =SUM(BG19:BJ19) -> 9.4857 | BG19: =BG9*BG20/100 -> 0 | BH19: =BH9*BH20/100 -> 0 | BI19: =BI9*BI20/100 -> 4.558915475 | BJ19: =BJ9*BJ20/100 -> 4.926784525 | BK19: =SUM(BL19:BO19) -> 19.1999 | BL19: =BL9*BL20/100 -> 0 | BM19: =BM9*BM20/100 -> 0 | BN19: =BN9*BN20/100 -> 9.420103656 | BO19: =BO9*BO20/100 -> 9.779796344 | BP19: 19199.9 | BQ19: 9714.2 | BR19: 9485.7
A20: 2.1. | B20: то же в % (п.2./п.1.) | C20: =IF(C9=0,0,C19/C9*100) -> 13.49099759 | F20: 6.48 | G20: 12.76 | H20: =IF(H9=0,0,H19/H9*100) -> 11.93192227 | K20: 6.47 | L20: 10.325 | M20: =IF(M9=0,0,M19/M9*100) -> 10.98963388 | P20: 6.47 | Q20: 12.77 | R20: =IF(R9=0,0,R19/R9*100) -> 9.364605839 | U20: 6.48 | V20: 12.77 | W20: =IF(W9=0,0,W19/W9*100) -> 13.15808888 | Z20: 6.48 | AA20: 12.76 | AB20: =IF(AB9=0,0,AB19/AB9*100) -> 13.15808888 | AE20: 6.48 | AF20: 12.76 | AG20: =IF(AG9=0,0,AG19/AG9*100) -> 13.15808888 | AJ20: 6.48 | AK20: 12.76 | AL20: =IF(AL9=0,0,AL19/AL9*100) -> 13.20754778 | AO20: 6.48 | AP20: 12.76 | AQ20: =IF(AQ9=0,0,AQ19/AQ9*100) -> 13.20743687 | AT20: 6.48 | AU20: 12.76 | AV20: =IF(AV9=0,0,AV19/AV9*100) -> 13.20740344 | AY20: 6.48 | AZ20: 12.76 | BA20: =IF(BA9=0,0,BA19/BA9*100) -> 12.94910085 | BD20: 6.48 | BE20: 12.29835026 | BF20: =IF(BF9=0,0,BF19/BF9*100) -> 13.48288564 | BI20: 6.48 | BJ20: 13.24992188 | BK20: =IF(BK9=0,0,BK19/BK9*100) -> 13.20742919 | BN20: 6.48 | BO20: 12.76
A21: 3. | B21: Расход электроэнергии на производственные и хознужды | C21: =SUM(D21:G21) -> 0 | H21: =SUM(I21:L21) -> 0 | M21: =SUM(N21:Q21) -> 0 | R21: =SUM(S21:V21) -> 0 | W21: =SUM(X21:AA21) -> 0 | AB21: =SUM(AC21:AF21) -> 0 | AG21: =SUM(AH21:AK21) -> 0 | AL21: =SUM(AM21:AP21) -> 0 | AQ21: =SUM(AR21:AU21) -> 0 | AV21: =SUM(AW21:AZ21) -> 0 | BA21: =SUM(BB21:BE21) -> 0 | BF21: =SUM(BG21:BJ21) -> 0 | BK21: =SUM(BL21:BO21) -> 0
A22: 4. | B22: Полезный отпуск из сети | C22: =SUM(D22:G22) -> 121.0094673 | D22: =D23+D24+D25 -> 0 | E22: =E23+E24+E25 -> 0 | F22: =F23+F24+F25 -> 53.95884 | G22: =G9-G19-G21 -> 67.05062734 | H22: =SUM(I22:L22) -> 64.60850318 | I22: =I23+I24+I25 -> 0 | J22: =J23+J24+J25 -> 0 | K22: =K23+K24+K25 -> 29.807 | L22: =L9-L19-L21 -> 34.80150318 | M22: =SUM(N22:Q22) -> 62.31615732 | N22: =N23+N24+N25 -> 0 | O22: =O23+O24+O25 -> 0 | P22: =P23+P24+P25 -> 40.702 | Q22: =Q9-Q19-Q21 -> 21.61415732 | R22: =SUM(S22:V22) -> 129.9457773 | S22: =S23+S24+S25 -> 0 | T22: =T23+T24+T25 -> 0 | U22: =U23+U24+U25 -> 73.188 | V22: =V9-V19-V21 -> 56.75777732 | W22: =SUM(X22:AA22) -> 61.76835054 | X22: =X23+X24+X25 -> 0 | Y22: =Y23+Y24+Y25 -> 0 | Z22: =Z23+Z24+Z25 -> 29.29300289 | AA22: =AA9-AA19-AA21 -> 32.47534765 | AB22: =SUM(AC22:AF22) -> 64.48090446 | AC22: =AC23+AC24+AC25 -> 0 | AD22: =AD23+AD24+AD25 -> 0 | AE22: =AE23+AE24+AE25 -> 30.5794036 | AF22: =AF9-AF19-AF21 -> 33.90150086 | AG22: =SUM(AH22:AK22) -> 126.249255 | AH22: =AH23+AH24+AH25 -> 0 | AI22: =AI23+AI24+AI25 -> 0 | AJ22: =AJ23+AJ24+AJ25 -> 59.87240649 | AK22: =AK9-AK19-AK21 -> 66.37684851 | AL22: =SUM(AM22:AP22) -> 61.82399957 | AM22: =AM23+AM24+AM25 -> 0 | AN22: =AN23+AN24+AN25 -> 0 | AO22: =AO23+AO24+AO25 -> 29.06 | AP22: =AP9-AP19-AP21 -> 32.76399957 | AQ22: =SUM(AR22:AU22) -> 64.34800631 | AR22: =AR23+AR24+AR25 -> 0 | AS22: =AS23+AS24+AS25 -> 0 | AT22: =AT23+AT24+AT25 -> 30.247 | AU22: =AU9-AU19-AU21 -> 34.10100631 | AV22: =SUM(AW22:AZ22) -> 126.1721335 | AW22: =AW23+AW24+AW25 -> 0 | AX22: =AX23+AX24+AX25 -> 0 | AY22: =AY23+AY24+AY25 -> 59.308 | AZ22: =AZ9-AZ19-AZ21 -> 66.86413347 | BA22: =SUM(BB22:BE22) -> 65.30413612 | BB22: =BB23+BB24+BB25 -> 0 | BC22: =BC23+BC24+BC25 -> 0 | BD22: =BD23+BD24+BD25 -> 30.69647463 | BE22: =BE9-BE19-BE21 -> 34.60766149 | BF22: =SUM(BG22:BJ22) -> 60.86793388 | BG22: =BG23+BG24+BG25 -> 0 | BH22: =BH23+BH24+BH25 -> 0 | BI22: =BI23+BI24+BI25 -> 28.61121974 | BJ22: =BJ9-BJ19-BJ21 -> 32.25671414 | BK22: =SUM(BL22:BO22) -> 126.17207 | BL22: =BL23+BL24+BL25 -> 0 | BM22: =BM23+BM24+BM25 -> 0 | BN22: =BN23+BN24+BN25 -> 59.30769437 | BO22: =BO9-BO19-BO21 -> 66.86437563 | BP22: 126172.07 | BQ22: 65304.13612 | BR22: 60867.93388
A23: 4.1. | B23: потребителям, присоединенным к сети | C23: =SUM(D23:G23) -> 120.13524 | F23: 53.09794 | G23: 67.0373 | H23: =SUM(I23:L23) -> 64.6085 | K23: 29.807 | L23: 34.8015 | M23: =SUM(N23:Q23) -> 67.331 | P23: 40.702 | Q23: 26.629 | R23: =SUM(S23:V23) -> 129.9458 | U23: 73.188 | V23: 56.7578 | W23: =SUM(X23:AA23) -> 61.29453292 | Z23: 28.82564025 | AA23: 32.46889268 | AB23: =SUM(AC23:AF23) -> 63.98627916 | AE23: 30.09151675 | AF23: 33.89476241 | AG23: =SUM(AH23:AK23) -> 125.2808121 | AJ23: 58.91715699 | AK23: 66.36365509 | AL23: =SUM(AM23:AP23) -> 61.32 | AO23: 28.557 | AP23: 32.763 | AQ23: =SUM(AR23:AU23) -> 63.824 | AT23: 29.723 | AU23: 34.101 | AV23: =SUM(AW23:AZ23) -> 125.1451 | AY23: 58.281 | AZ23: 66.8641 | BA23: =SUM(BB23:BE23) -> 64.77256079 | BD23: =30164.8993018864/1000 -> 30.1648993 | BE23: =34607.6614894768/1000 -> 34.60766149 | BF23: =SUM(BG23:BJ23) -> 60.37246921 | BI23: =28115.755067192/1000 -> 28.11575507 | BJ23: =32256.7141414449/1000 -> 32.25671414 | BK23: =SUM(BL23:BO23) -> 125.14503 | BN23: =58280.6543690784/1000 -> 58.28065437 | BO23: =66864.3756309217/1000 -> 66.86437563
A24: 4.2. | B24: переток в филиал "Владимирэнерго" ОАО "МРСК Центра и Приволжья" | C24: =SUM(D24:G24) -> 0.8467 | F24: 0.8467 | G24: 0 | H24: =SUM(I24:L24) -> 0 | M24: =SUM(N24:Q24) -> 0 | R24: =SUM(S24:V24) -> 0 | W24: =SUM(X24:AA24) -> 0.4596537944 | Z24: 0.4596537944 | AA24: 0 | AB24: =SUM(AC24:AF24) -> 0.479839467 | AE24: 0.479839467 | AF24: 0 | AG24: =SUM(AH24:AK24) -> 0.9394932614 | AJ24: 0.9394932614 | AK24: 0 | AL24: =SUM(AM24:AP24) -> 0.503 | AO24: 0.503 | AQ24: =SUM(AR24:AU24) -> 0.524 | AT24: 0.524 | AV24: =SUM(AW24:AZ24) -> 1.027 | AY24: 1.027 | BA24: =SUM(BB24:BE24) -> 0.5315753317 | BD24: =531.57533171842/1000 -> 0.5315753317 | BF24: =SUM(BG24:BJ24) -> 0.4954646683 | BI24: =495.46466828158/1000 -> 0.4954646683 | BK24: =SUM(BL24:BO24) -> 1.02704 | BN24: =1027.04/1000 -> 1.02704
A25: 4.3. | B25: переток в другие сетевые организации | C25: =SUM(D25:G25) -> 0.02748 | F25: 0.0142 | G25: 0.01328 | H25: =SUM(I25:L25) -> 0 | M25: =SUM(N25:Q25) -> 0 | R25: =SUM(S25:V25) -> 0 | W25: =SUM(X25:AA25) -> 0.01414089516 | Z25: 0.007708850692 | AA25: 0.00643204447 | AB25: =SUM(AC25:AF25) -> 0.01476189184 | AE25: 0.008047384471 | AF25: 0.006714507369 | AG25: =SUM(AH25:AK25) -> 0.028902787 | AJ25: 0.01575623516 | AK25: 0.01314655184 | AL25: =SUM(AM25:AP25) -> 0 | AQ25: =SUM(AR25:AU25) -> 0 | AV25: =SUM(AW25:AZ25) -> 0 | BA25: =SUM(BB25:BE25) -> 0 | BF25: =SUM(BG25:BJ25) -> 0 | BK25: =SUM(BL25:BO25) -> 0
B26: Проверка | D26: =D9-D19-D21-D23-D24-D25-E12-F12-G12 -> 0 | E26: =E9-E19-E21-E23-E24-E25-F13-G13 -> 0 | F26: =F9-F19-F21-F23-F24-F25-G14 -> 0 | G26: =G9-G19-G21-G23-G24-G25 -> 4.73438144e-05 | I26: =I9-I19-I21-I23-I24-I25-J12-K12-L12 -> 0 | J26: =J9-J19-J21-J23-J24-J25-K13-L13 -> 0 | K26: =K9-K19-K21-K23-K24-K25-L14 -> 0 | L26: =L9-L19-L21-L23-L24-L25 -> 3.184549989e-06 | N26: =N9-N19-N21-N23-N24-N25-O12-P12-Q12 -> 0 | O26: =O9-O19-O21-O23-O24-O25-P13-Q13 -> 0 | P26: =P9-P19-P21-P23-P24-P25-Q14 -> 0 | Q26: =Q9-Q19-Q21-Q23-Q24-Q25 -> -5.014842678 | S26: =S9-S19-S21-S23-S24-S25-T12-U12-V12 -> 0 | T26: =T9-T19-T21-T23-T24-T25-U13-V13 -> 0 | U26: =U9-U19-U21-U23-U24-U25-V14 -> 0 | V26: =V9-V19-V21-V23-V24-V25 -> -2.268375999e-05 | X26: =X9-X19-X21-X23-X24-X25-Y12-Z12-AA12 -> 0 | Y26: =Y9-Y19-Y21-Y23-Y24-Y25-Z13-AA13 -> 0 | Z26: =Z9-Z19-Z21-Z23-Z24-Z25-AA14 -> 0 | AA26: =AA9-AA19-AA21-AA23-AA24-AA25 -> 2.29305361e-05 | AC26: =AC9-AC19-AC21-AC23-AC24-AC25-AD12-AE12-AF12 -> 0 | AD26: =AD9-AD19-AD21-AD23-AD24-AD25-AE13-AF13 -> 0 | AE26: =AE9-AE19-AE21-AE23-AE24-AE25-AF14 -> 0 | AF26: =AF9-AF19-AF21-AF23-AF24-AF25 -> 2.393752943e-05 | AH26: =AH9-AH19-AH21-AH23-AH24-AH25-AI12-AJ12-AK12 -> 0 | AI26: =AI9-AI19-AI21-AI23-AI24-AI25-AJ13-AK13 -> 0 | AJ26: =AJ9-AJ19-AJ21-AJ23-AJ24-AJ25-AK14 -> 0 | AK26: =AK9-AK19-AK21-AK23-AK24-AK25 -> 4.686806553e-05 | AM26: =AM9-AM19-AM21-AM23-AM24-AM25-AN12-AO12-AP12 -> 0 | AN26: =AN9-AN19-AN21-AN23-AN24-AN25-AO13-AP13 -> 0 | AO26: =AO9-AO19-AO21-AO23-AO24-AO25-AP14 -> 0 | AP26: =AP9-AP19-AP21-AP23-AP24-AP25 -> 0.00099956736 | AR26: =AR9-AR19-AR21-AR23-AR24-AR25-AS12-AT12-AU12 -> 0 | AS26: =AS9-AS19-AS21-AS23-AS24-AS25-AT13-AU13 -> 0 | AT26: =AT9-AT19-AT21-AT23-AT24-AT25-AU14 -> 0 | AU26: =AU9-AU19-AU21-AU23-AU24-AU25 -> 6.307200003e-06 | AW26: =AW9-AW19-AW21-AW23-AW24-AW25-AX12-AY12-AZ12 -> 0 | AX26: =AX9-AX19-AX21-AX23-AX24-AX25-AY13-AZ13 -> 0 | AY26: =AY9-AY19-AY21-AY23-AY24-AY25-AZ14 -> 0 | AZ26: =AZ9-AZ19-AZ21-AZ23-AZ24-AZ25 -> 3.347456e-05 | BB26: =BB9-BB19-BB21-BB23-BB24-BB25-BC12-BD12-BE12 -> 0 | BC26: =BC9-BC19-BC21-BC23-BC24-BC25-BD13-BE13 -> 0 | BD26: =BD9-BD19-BD21-BD23-BD24-BD25-BE14 -> 0 | BE26: =BE9-BE19-BE21-BE23-BE24-BE25 -> -8.526512829e-14 | BG26: =BG9-BG19-BG21-BG23-BG24-BG25-BH12-BI12-BJ12 -> 0 | BH26: =BH9-BH19-BH21-BH23-BH24-BH25-BI13-BJ13 -> 0 | BI26: =BI9-BI19-BI21-BI23-BI24-BI25-BJ14 -> 0 | BJ26: =BJ9-BJ19-BJ21-BJ23-BJ24-BJ25 -> -1.421085472e-14 | BL26: =BL9-BL19-BL21-BL23-BL24-BL25-BM12-BN12-BO12 -> 0 | BM26: =BM9-BM19-BM21-BM23-BM24-BM25-BN13-BO13 -> 0 | BN26: =BN9-BN19-BN21-BN23-BN24-BN25-BO14 -> 0 | BO26: =BO9-BO19-BO21-BO23-BO24-BO25 -> -9.947598301e-14
B28: Примечание | AG28: =AG23+AG25 -> 125.3097149
B30: Расшифровка п. 1.5. (Поступление от других сетевых организаций)
A31: № | B31: Наименование других сетевых организаций | C31: Всего | D31: ВН | E31: СН1 | F31: СН2 | G31: НН | H31: Всего | I31: ВН | J31: СН1 | K31: СН2 | L31: НН | M31: Всего | N31: ВН | O31: СН1 | P31: СН2 | Q31: НН | R31: Всего | S31: ВН | T31: СН1 | U31: СН2 | V31: НН | W31: Всего | X31: ВН | Y31: СН1 | Z31: СН2 | AA31: НН | AB31: Всего | AC31: ВН | AD31: СН1 | AE31: СН2 | AF31: НН | AG31: Всего | AH31: ВН | AI31: СН1 | AJ31: СН2 | AK31: НН | AL31: Всего | AM31: ВН | AN31: СН1 | AO31: СН2 | AP31: НН | AQ31: Всего | AR31: ВН | AS31: СН1 | AT31: СН2 | AU31: НН | AV31: Всего | AW31: ВН | AX31: СН1 | AY31: СН2 | AZ31: НН | BA31: Всего | BB31: ВН | BC31: СН1 | BD31: СН2 | BE31: НН | BF31: Всего | BG31: ВН | BH31: СН1 | BI31: СН2 | BJ31: НН | BK31: Всего | BL31: ВН | BM31: СН1 | BN31: СН2 | BO31: НН
C32: =SUM(D32:G32) -> 0 | H32: =SUM(I32:L32) -> 0 | M32: =SUM(N32:Q32) -> 0 | R32: =SUM(S32:V32) -> 0 | W32: =SUM(X32:AA32) -> 0 | AB32: =SUM(AC32:AF32) -> 0 | AG32: =SUM(AH32:AK32) -> 0 | AL32: =SUM(AM32:AP32) -> 0 | AQ32: =SUM(AR32:AU32) -> 0 | AV32: =SUM(AW32:AZ32) -> 0 | BA32: =SUM(BB32:BE32) -> 0 | BF32: =SUM(BG32:BJ32) -> 0 | BK32: =SUM(BL32:BO32) -> 0
C33: =SUM(D33:G33) -> 0 | H33: =SUM(I33:L33) -> 0 | M33: =SUM(N33:Q33) -> 0 | R33: =SUM(S33:V33) -> 0 | W33: =SUM(X33:AA33) -> 0 | AB33: =SUM(AC33:AF33) -> 0 | AG33: =SUM(AH33:AK33) -> 0 | AL33: =SUM(AM33:AP33) -> 0 | AQ33: =SUM(AR33:AU33) -> 0 | AV33: =SUM(AW33:AZ33) -> 0 | BA33: =SUM(BB33:BE33) -> 0 | BF33: =SUM(BG33:BJ33) -> 0 | BK33: =SUM(BL33:BO33) -> 0
C34: =SUM(D34:G34) -> 0 | H34: =SUM(I34:L34) -> 0 | M34: =SUM(N34:Q34) -> 0 | R34: =SUM(S34:V34) -> 0 | W34: =SUM(X34:AA34) -> 0 | AB34: =SUM(AC34:AF34) -> 0 | AG34: =SUM(AH34:AK34) -> 0 | AL34: =SUM(AM34:AP34) -> 0 | AQ34: =SUM(AR34:AU34) -> 0 | AV34: =SUM(AW34:AZ34) -> 0 | BA34: =SUM(BB34:BE34) -> 0 | BF34: =SUM(BG34:BJ34) -> 0 | BK34: =SUM(BL34:BO34) -> 0
C35: =SUM(D35:G35) -> 0 | H35: =SUM(I35:L35) -> 0 | M35: =SUM(N35:Q35) -> 0 | R35: =SUM(S35:V35) -> 0 | W35: =SUM(X35:AA35) -> 0 | AB35: =SUM(AC35:AF35) -> 0 | AG35: =SUM(AH35:AK35) -> 0 | AL35: =SUM(AM35:AP35) -> 0 | AQ35: =SUM(AR35:AU35) -> 0 | AV35: =SUM(AW35:AZ35) -> 0 | BA35: =SUM(BB35:BE35) -> 0 | BF35: =SUM(BG35:BJ35) -> 0 | BK35: =SUM(BL35:BO35) -> 0
A36: Добавить
B37: Итого | C37: =SUM(C32:C35) -> 0 | D37: =SUM(D32:D35) -> 0 | E37: =SUM(E32:E35) -> 0 | F37: =SUM(F32:F35) -> 0 | G37: =SUM(G32:G35) -> 0 | H37: =SUM(H32:H35) -> 0 | I37: 0 | J37: 0 | K37: 0 | L37: 0 | M37: 0 | N37: 0 | O37: 0 | P37: 0 | Q37: 0 | R37: 0 | S37: 0 | T37: 0 | U37: 0 | V37: 0 | W37: 0 | X37: 0 | Y37: 0 | Z37: 0 | AA37: 0 | AB37: 0 | AC37: 0 | AD37: 0 | AE37: 0 | AF37: 0 | AG37: 0 | AH37: 0 | AI37: 0 | AJ37: 0 | AK37: 0 | AL37: 0 | AM37: 0 | AN37: 0 | AO37: 0 | AP37: 0 | AQ37: 0 | AR37: 0 | AS37: 0 | AT37: 0 | AU37: 0 | AV37: =SUM(AV32:AV35) -> 0 | AW37: =SUM(AW32:AW35) -> 0 | AX37: =SUM(AX32:AX35) -> 0 | AY37: =SUM(AY32:AY35) -> 0 | AZ37: =SUM(AZ32:AZ35) -> 0 | BA37: =SUM(BA32:BA35) -> 0 | BB37: 0 | BC37: 0 | BD37: 0 | BE37: 0 | BF37: 0 | BG37: 0 | BH37: 0 | BI37: 0 | BJ37: 0 | BK37: =SUM(BK32:BK35) -> 0 | BL37: =SUM(BL32:BL35) -> 0 | BM37: =SUM(BM32:BM35) -> 0 | BN37: =SUM(BN32:BN35) -> 0 | BO37: =SUM(BO32:BO35) -> 0
B39: Расшифровка п. 4.3. (Полезный отпуск - переток в другие сетевые организации)
A40: № | B40: Наименование других сетевых организаций | C40: Всего | D40: ВН | E40: СН1 | F40: СН2 | G40: НН | H40: Всего | I40: ВН | J40: СН1 | K40: СН2 | L40: НН | M40: Всего | N40: ВН | O40: СН1 | P40: СН2 | Q40: НН | R40: Всего | S40: ВН | T40: СН1 | U40: СН2 | V40: НН | W40: Всего | X40: ВН | Y40: СН1 | Z40: СН2 | AA40: НН | AB40: Всего | AC40: ВН | AD40: СН1 | AE40: СН2 | AF40: НН | AG40: Всего | AH40: ВН | AI40: СН1 | AJ40: СН2 | AK40: НН | AL40: Всего | AM40: ВН | AN40: СН1 | AO40: СН2 | AP40: НН | AQ40: Всего | AR40: ВН | AS40: СН1 | AT40: СН2 | AU40: НН | AV40: Всего | AW40: ВН | AX40: СН1 | AY40: СН2 | AZ40: НН | BA40: Всего | BB40: ВН | BC40: СН1 | BD40: СН2 | BE40: НН | BF40: Всего | BG40: ВН | BH40: СН1 | BI40: СН2 | BJ40: НН | BK40: Всего | BL40: ВН | BM40: СН1 | BN40: СН2 | BO40: НН
C41: =SUM(D41:G41) -> 0 | H41: =SUM(I41:L41) -> 0 | M41: =SUM(N41:Q41) -> 0 | R41: =SUM(S41:V41) -> 0 | W41: =SUM(X41:AA41) -> 0 | AB41: =SUM(AC41:AF41) -> 0 | AG41: =SUM(AH41:AK41) -> 0 | AL41: =SUM(AM41:AP41) -> 0 | AQ41: =SUM(AR41:AU41) -> 0 | AV41: =SUM(AW41:AZ41) -> 0 | BA41: =SUM(BB41:BE41) -> 0 | BF41: =SUM(BG41:BJ41) -> 0 | BK41: =SUM(BL41:BO41) -> 0
C42: 0 | H42: 0 | M42: 0 | R42: 0 | W42: 0 | AB42: 0 | AG42: 0 | AL42: 0 | AQ42: 0 | AV42: 0 | BA42: 0 | BF42: 0 | BK42: 0
C43: 0 | H43: 0 | M43: 0 | R43: 0 | W43: 0 | AB43: 0 | AG43: 0 | AL43: 0 | AQ43: 0 | AV43: 0 | BA43: 0 | BF43: 0 | BK43: 0
C44: 0 | H44: 0 | M44: 0 | R44: 0 | W44: 0 | AB44: 0 | AG44: 0 | AL44: 0 | AQ44: 0 | AV44: 0 | BA44: 0 | BF44: 0 | BK44: 0
C45: 0 | H45: 0 | M45: 0 | R45: 0 | W45: 0 | AB45: 0 | AG45: 0 | AL45: 0 | AQ45: 0 | AV45: 0 | BA45: 0 | BF45: 0 | BK45: 0
C46: 0 | H46: 0 | M46: 0 | R46: 0 | W46: 0 | AB46: 0 | AG46: 0 | AL46: 0 | AQ46: 0 | AV46: 0 | BA46: 0 | BF46: 0 | BK46: 0
A47: Добавить
B48: Итого | C48: =SUM(C41:C46) -> 0 | D48: =SUM(D41:D46) -> 0 | E48: =SUM(E41:E46) -> 0 | F48: =SUM(F41:F46) -> 0 | G48: =SUM(G41:G46) -> 0 | H48: =SUM(H41:H46) -> 0 | I48: 0 | J48: 0 | K48: 0 | L48: 0 | M48: 0 | N48: 0 | O48: 0 | P48: 0 | Q48: 0 | R48: 0 | S48: 0 | T48: 0 | U48: 0 | V48: 0 | W48: 0 | X48: 0 | Y48: 0 | Z48: 0 | AA48: 0 | AB48: 0 | AC48: 0 | AD48: 0 | AE48: 0 | AF48: 0 | AG48: 0 | AH48: 0 | AI48: 0 | AJ48: 0 | AK48: 0 | AL48: 0 | AM48: 0 | AN48: 0 | AO48: 0 | AP48: 0 | AQ48: 0 | AR48: 0 | AS48: 0 | AT48: 0 | AU48: 0 | AV48: =SUM(AV41:AV46) -> 0 | AW48: =SUM(AW41:AW46) -> 0 | AX48: =SUM(AX41:AX46) -> 0 | AY48: =SUM(AY41:AY46) -> 0 | AZ48: =SUM(AZ41:AZ46) -> 0 | BA48: =SUM(BA41:BA46) -> 0 | BB48: 0 | BC48: 0 | BD48: 0 | BE48: 0 | BF48: 0 | BG48: 0 | BH48: 0 | BI48: 0 | BJ48: 0 | BK48: =SUM(BK41:BK46) -> 0 | BL48: =SUM(BL41:BL46) -> 0 | BM48: =SUM(BM41:BM46) -> 0 | BN48: =SUM(BN41:BN46) -> 0 | BO48: =SUM(BO41:BO46) -> 0
B50: Расшифровка п. 4.1. (Полезный отпуск потребителям, присоединенным к сети)
A51: № | B51: Наименование сбытовых организаций | C51: Всего | D51: ВН | E51: СН1 | F51: СН2 | G51: НН | H51: Всего | I51: ВН | J51: СН1 | K51: СН2 | L51: НН | M51: Всего | N51: ВН | O51: СН1 | P51: СН2 | Q51: НН | R51: Всего | S51: ВН | T51: СН1 | U51: СН2 | V51: НН | W51: Всего | X51: ВН | Y51: СН1 | Z51: СН2 | AA51: НН | AB51: Всего | AC51: ВН | AD51: СН1 | AE51: СН2 | AF51: НН | AG51: Всего | AH51: ВН | AI51: СН1 | AJ51: СН2 | AK51: НН | AL51: Всего | AM51: ВН | AN51: СН1 | AO51: СН2 | AP51: НН | AQ51: Всего | AR51: ВН | AS51: СН1 | AT51: СН2 | AU51: НН | AV51: Всего | AW51: ВН | AX51: СН1 | AY51: СН2 | AZ51: НН | BA51: Всего | BB51: ВН | BC51: СН1 | BD51: СН2 | BE51: НН | BF51: Всего | BG51: ВН | BH51: СН1 | BI51: СН2 | BJ51: НН | BK51: Всего | BL51: ВН | BM51: СН1 | BN51: СН2 | BO51: НН
A52: 1. | B52: ОАО "Владимирэнергосбыт" всего, в том числе: | C52: =D52+E52+F52+G52 -> 0 | D52: =D53+D54 -> 0 | E52: =E53+E54 -> 0 | F52: =F53+F54 -> 0 | G52: =G53+G54 -> 0 | H52: =I52+J52+K52+L52 -> 0 | I52: =I53+I54 -> 0 | J52: =J53+J54 -> 0 | K52: =K53+K54 -> 0 | L52: =L53+L54 -> 0 | M52: =N52+O52+P52+Q52 -> 0 | N52: =N53+N54 -> 0 | O52: =O53+O54 -> 0 | P52: =P53+P54 -> 0 | Q52: =Q53+Q54 -> 0 | R52: =S52+T52+U52+V52 -> 0 | S52: =S53+S54 -> 0 | T52: =T53+T54 -> 0 | U52: =U53+U54 -> 0 | V52: =V53+V54 -> 0 | W52: =X52+Y52+Z52+AA52 -> 0 | X52: =X53+X54 -> 0 | Y52: =Y53+Y54 -> 0 | Z52: =Z53+Z54 -> 0 | AA52: =AA53+AA54 -> 0 | AB52: =AC52+AD52+AE52+AF52 -> 0 | AC52: =AC53+AC54 -> 0 | AD52: =AD53+AD54 -> 0 | AE52: =AE53+AE54 -> 0 | AF52: =AF53+AF54 -> 0 | AG52: =AH52+AI52+AJ52+AK52 -> 0 | AH52: =AH53+AH54 -> 0 | AI52: =AI53+AI54 -> 0 | AJ52: =AJ53+AJ54 -> 0 | AK52: =AK53+AK54 -> 0 | AL52: =AM52+AN52+AO52+AP52 -> 0 | AM52: =AM53+AM54 -> 0 | AN52: =AN53+AN54 -> 0 | AO52: =AO53+AO54 -> 0 | AP52: =AP53+AP54 -> 0 | AQ52: =AR52+AS52+AT52+AU52 -> 0 | AR52: =AR53+AR54 -> 0 | AS52: =AS53+AS54 -> 0 | AT52: =AT53+AT54 -> 0 | AU52: =AU53+AU54 -> 0 | AV52: =AW52+AX52+AY52+AZ52 -> 0 | AW52: =AW53+AW54 -> 0 | AX52: =AX53+AX54 -> 0 | AY52: =AY53+AY54 -> 0 | AZ52: =AZ53+AZ54 -> 0 | BA52: =BB52+BC52+BD52+BE52 -> 0 | BB52: =BB53+BB54 -> 0 | BC52: =BC53+BC54 -> 0 | BD52: =BD53+BD54 -> 0 | BE52: =BE53+BE54 -> 0 | BF52: =BG52+BH52+BI52+BJ52 -> 0 | BG52: =BG53+BG54 -> 0 | BH52: =BH53+BH54 -> 0 | BI52: =BI53+BI54 -> 0 | BJ52: =BJ53+BJ54 -> 0 | BK52: =BL52+BM52+BN52+BO52 -> 0 | BL52: =BL53+BL54 -> 0 | BM52: =BM53+BM54 -> 0 | BN52: =BN53+BN54 -> 0 | BO52: =BO53+BO54 -> 0
A53: 1.1. | B53: прочие потребители | C53: =D53+E53+F53+G53 -> 0 | H53: =I53+J53+K53+L53 -> 0 | M53: =N53+O53+P53+Q53 -> 0 | R53: =S53+T53+U53+V53 -> 0 | W53: =X53+Y53+Z53+AA53 -> 0 | AB53: =AC53+AD53+AE53+AF53 -> 0 | AG53: =AH53+AI53+AJ53+AK53 -> 0 | AL53: =AM53+AN53+AO53+AP53 -> 0 | AQ53: =AR53+AS53+AT53+AU53 -> 0 | AV53: =AW53+AX53+AY53+AZ53 -> 0 | BA53: =BB53+BC53+BD53+BE53 -> 0 | BF53: =BG53+BH53+BI53+BJ53 -> 0 | BK53: =BL53+BM53+BN53+BO53 -> 0
A54: 1.2. | B54: население | C54: =D54+E54+F54+G54 -> 0 | H54: 0 | M54: 0 | R54: 0 | W54: 0 | AB54: 0 | AG54: 0 | AL54: 0 | AQ54: 0 | AV54: 0 | BA54: 0 | BF54: 0 | BK54: 0
A55: 2. | B55: ОАО "ВКС" всего, в том числе: | C55: 0 | D55: =D56+D57 -> 0 | E55: =E56+E57 -> 0 | F55: =F56+F57 -> 0 | G55: =G56+G57 -> 0 | H55: 0 | I55: =I56+I57 -> 0 | J55: =J56+J57 -> 0 | K55: =K56+K57 -> 0 | L55: =L56+L57 -> 0 | M55: 0 | N55: =N56+N57 -> 0 | O55: =O56+O57 -> 0 | P55: =P56+P57 -> 0 | Q55: =Q56+Q57 -> 0 | R55: 0 | S55: =S56+S57 -> 0 | T55: =T56+T57 -> 0 | U55: =U56+U57 -> 0 | V55: =V56+V57 -> 0 | W55: 0 | X55: =X56+X57 -> 0 | Y55: =Y56+Y57 -> 0 | Z55: =Z56+Z57 -> 0 | AA55: =AA56+AA57 -> 0 | AB55: 0 | AC55: =AC56+AC57 -> 0 | AD55: =AD56+AD57 -> 0 | AE55: =AE56+AE57 -> 0 | AF55: =AF56+AF57 -> 0 | AG55: 0 | AH55: =AH56+AH57 -> 0 | AI55: =AI56+AI57 -> 0 | AJ55: =AJ56+AJ57 -> 0 | AK55: =AK56+AK57 -> 0 | AL55: 0 | AM55: =AM56+AM57 -> 0 | AN55: =AN56+AN57 -> 0 | AO55: =AO56+AO57 -> 0 | AP55: =AP56+AP57 -> 0 | AQ55: 0 | AR55: =AR56+AR57 -> 0 | AS55: =AS56+AS57 -> 0 | AT55: =AT56+AT57 -> 0 | AU55: =AU56+AU57 -> 0 | AV55: 0 | AW55: =AW56+AW57 -> 0 | AX55: =AX56+AX57 -> 0 | AY55: =AY56+AY57 -> 0 | AZ55: =AZ56+AZ57 -> 0 | BA55: 0 | BB55: =BB56+BB57 -> 0 | BC55: =BC56+BC57 -> 0 | BD55: =BD56+BD57 -> 0 | BE55: =BE56+BE57 -> 0 | BF55: 0 | BG55: =BG56+BG57 -> 0 | BH55: =BH56+BH57 -> 0 | BI55: =BI56+BI57 -> 0 | BJ55: =BJ56+BJ57 -> 0 | BK55: 0 | BL55: =BL56+BL57 -> 0 | BM55: =BM56+BM57 -> 0 | BN55: =BN56+BN57 -> 0 | BO55: =BO56+BO57 -> 0
A56: 2.1. | B56: прочие потребители | C56: 0 | H56: 0 | M56: 0 | R56: 0 | W56: 0 | AB56: 0 | AG56: 0 | AL56: 0 | AQ56: 0 | AV56: 0 | BA56: 0 | BF56: 0 | BK56: 0
A57: 2.2. | B57: население | C57: 0 | H57: 0 | M57: 0 | R57: 0 | W57: 0 | AB57: 0 | AG57: 0 | AL57: 0 | AQ57: 0 | AV57: 0 | BA57: 0 | BF57: 0 | BK57: 0
A58: 3. | B58: ОАО "Русэнергосбыт" | C58: 0 | D58: =D59+D60 -> 0 | E58: =E59+E60 -> 0 | F58: =F59+F60 -> 0 | G58: =G59+G60 -> 0 | H58: 0 | I58: =I59+I60 -> 0 | J58: =J59+J60 -> 0 | K58: =K59+K60 -> 0 | L58: =L59+L60 -> 0 | M58: 0 | N58: =N59+N60 -> 0 | O58: =O59+O60 -> 0 | P58: =P59+P60 -> 0 | Q58: =Q59+Q60 -> 0 | R58: 0 | S58: =S59+S60 -> 0 | T58: =T59+T60 -> 0 | U58: =U59+U60 -> 0 | V58: =V59+V60 -> 0 | W58: 0 | X58: =X59+X60 -> 0 | Y58: =Y59+Y60 -> 0 | Z58: =Z59+Z60 -> 0 | AA58: =AA59+AA60 -> 0 | AB58: 0 | AC58: =AC59+AC60 -> 0 | AD58: =AD59+AD60 -> 0 | AE58: =AE59+AE60 -> 0 | AF58: =AF59+AF60 -> 0 | AG58: 0 | AH58: =AH59+AH60 -> 0 | AI58: =AI59+AI60 -> 0 | AJ58: =AJ59+AJ60 -> 0 | AK58: =AK59+AK60 -> 0 | AL58: 0 | AM58: =AM59+AM60 -> 0 | AN58: =AN59+AN60 -> 0 | AO58: =AO59+AO60 -> 0 | AP58: =AP59+AP60 -> 0 | AQ58: 0 | AR58: =AR59+AR60 -> 0 | AS58: =AS59+AS60 -> 0 | AT58: =AT59+AT60 -> 0 | AU58: =AU59+AU60 -> 0 | AV58: 0 | AW58: =AW59+AW60 -> 0 | AX58: =AX59+AX60 -> 0 | AY58: =AY59+AY60 -> 0 | AZ58: =AZ59+AZ60 -> 0 | BA58: 0 | BB58: =BB59+BB60 -> 0 | BC58: =BC59+BC60 -> 0 | BD58: =BD59+BD60 -> 0 | BE58: =BE59+BE60 -> 0 | BF58: 0 | BG58: =BG59+BG60 -> 0 | BH58: =BH59+BH60 -> 0 | BI58: =BI59+BI60 -> 0 | BJ58: =BJ59+BJ60 -> 0 | BK58: 0 | BL58: =BL59+BL60 -> 0 | BM58: =BM59+BM60 -> 0 | BN58: =BN59+BN60 -> 0 | BO58: =BO59+BO60 -> 0
A59: 3.1. | B59: прочие потребители | C59: 0 | H59: 0 | M59: 0 | R59: 0 | W59: 0 | AB59: 0 | AG59: 0 | AL59: 0 | AQ59: 0 | AV59: 0 | BA59: 0 | BF59: 0 | BK59: 0
A60: 3.2. | B60: население | C60: 0 | H60: 0 | M60: 0 | R60: 0 | W60: 0 | AB60: 0 | AG60: 0 | AL60: 0 | AQ60: 0 | AV60: 0 | BA60: 0 | BF60: 0 | BK60: 0
A61: 4. | B61: ОАО "Оборонэнергосбыт" | C61: 0 | D61: =D62+D63 -> 0 | E61: =E62+E63 -> 0 | F61: =F62+F63 -> 0 | G61: =G62+G63 -> 0 | H61: 0 | I61: =I62+I63 -> 0 | J61: =J62+J63 -> 0 | K61: =K62+K63 -> 0 | L61: =L62+L63 -> 0 | M61: 0 | N61: =N62+N63 -> 0 | O61: =O62+O63 -> 0 | P61: =P62+P63 -> 0 | Q61: =Q62+Q63 -> 0 | R61: 0 | S61: =S62+S63 -> 0 | T61: =T62+T63 -> 0 | U61: =U62+U63 -> 0 | V61: =V62+V63 -> 0 | W61: 0 | X61: =X62+X63 -> 0 | Y61: =Y62+Y63 -> 0 | Z61: =Z62+Z63 -> 0 | AA61: =AA62+AA63 -> 0 | AB61: 0 | AC61: =AC62+AC63 -> 0 | AD61: =AD62+AD63 -> 0 | AE61: =AE62+AE63 -> 0 | AF61: =AF62+AF63 -> 0 | AG61: 0 | AH61: =AH62+AH63 -> 0 | AI61: =AI62+AI63 -> 0 | AJ61: =AJ62+AJ63 -> 0 | AK61: =AK62+AK63 -> 0 | AL61: 0 | AM61: =AM62+AM63 -> 0 | AN61: =AN62+AN63 -> 0 | AO61: =AO62+AO63 -> 0 | AP61: =AP62+AP63 -> 0 | AQ61: 0 | AR61: =AR62+AR63 -> 0 | AS61: =AS62+AS63 -> 0 | AT61: =AT62+AT63 -> 0 | AU61: =AU62+AU63 -> 0 | AV61: 0 | AW61: =AW62+AW63 -> 0 | AX61: =AX62+AX63 -> 0 | AY61: =AY62+AY63 -> 0 | AZ61: =AZ62+AZ63 -> 0 | BA61: 0 | BB61: =BB62+BB63 -> 0 | BC61: =BC62+BC63 -> 0 | BD61: =BD62+BD63 -> 0 | BE61: =BE62+BE63 -> 0 | BF61: 0 | BG61: =BG62+BG63 -> 0 | BH61: =BH62+BH63 -> 0 | BI61: =BI62+BI63 -> 0 | BJ61: =BJ62+BJ63 -> 0 | BK61: 0 | BL61: =BL62+BL63 -> 0 | BM61: =BM62+BM63 -> 0 | BN61: =BN62+BN63 -> 0 | BO61: =BO62+BO63 -> 0
A62: 4.1. | B62: прочие потребители | C62: 0 | H62: 0 | M62: 0 | R62: 0 | W62: 0 | AB62: 0 | AG62: 0 | AL62: 0 | AQ62: 0 | AV62: 0 | BA62: 0 | BF62: 0 | BK62: 0
A63: 4.2. | B63: население | C63: 0 | H63: 0 | M63: 0 | R63: 0 | W63: 0 | AB63: 0 | AG63: 0 | AL63: 0 | AQ63: 0 | AV63: 0 | BA63: 0 | BF63: 0 | BK63: 0
A64: Добавить
B65: Итого всего, в том числе: | C65: =D65+E65+F65+G65 -> 0 | D65: =D66+D67 -> 0 | E65: =E66+E67 -> 0 | F65: =F66+F67 -> 0 | G65: =G66+G67 -> 0 | H65: =I65+J65+K65+L65 -> 0 | I65: =I66+I67 -> 0 | J65: =J66+J67 -> 0 | K65: =K66+K67 -> 0 | L65: =L66+L67 -> 0 | M65: =N65+O65+P65+Q65 -> 0 | N65: =N66+N67 -> 0 | O65: =O66+O67 -> 0 | P65: =P66+P67 -> 0 | Q65: =Q66+Q67 -> 0 | R65: =S65+T65+U65+V65 -> 0 | S65: =S66+S67 -> 0 | T65: =T66+T67 -> 0 | U65: =U66+U67 -> 0 | V65: =V66+V67 -> 0 | W65: =X65+Y65+Z65+AA65 -> 0 | X65: =X66+X67 -> 0 | Y65: =Y66+Y67 -> 0 | Z65: =Z66+Z67 -> 0 | AA65: =AA66+AA67 -> 0 | AB65: =AC65+AD65+AE65+AF65 -> 0 | AC65: =AC66+AC67 -> 0 | AD65: =AD66+AD67 -> 0 | AE65: =AE66+AE67 -> 0 | AF65: =AF66+AF67 -> 0 | AG65: =AH65+AI65+AJ65+AK65 -> 0 | AH65: =AH66+AH67 -> 0 | AI65: =AI66+AI67 -> 0 | AJ65: =AJ66+AJ67 -> 0 | AK65: =AK66+AK67 -> 0 | AL65: =AM65+AN65+AO65+AP65 -> 0 | AM65: =AM66+AM67 -> 0 | AN65: =AN66+AN67 -> 0 | AO65: =AO66+AO67 -> 0 | AP65: =AP66+AP67 -> 0 | AQ65: =AR65+AS65+AT65+AU65 -> 0 | AR65: =AR66+AR67 -> 0 | AS65: =AS66+AS67 -> 0 | AT65: =AT66+AT67 -> 0 | AU65: =AU66+AU67 -> 0 | AV65: =AW65+AX65+AY65+AZ65 -> 0 | AW65: =AW66+AW67 -> 0 | AX65: =AX66+AX67 -> 0 | AY65: =AY66+AY67 -> 0 | AZ65: =AZ66+AZ67 -> 0 | BA65: =BB65+BC65+BD65+BE65 -> 0 | BB65: =BB66+BB67 -> 0 | BC65: =BC66+BC67 -> 0 | BD65: =BD66+BD67 -> 0 | BE65: =BE66+BE67 -> 0 | BF65: =BG65+BH65+BI65+BJ65 -> 0 | BG65: =BG66+BG67 -> 0 | BH65: =BH66+BH67 -> 0 | BI65: =BI66+BI67 -> 0 | BJ65: =BJ66+BJ67 -> 0 | BK65: =BL65+BM65+BN65+BO65 -> 0 | BL65: =BL66+BL67 -> 0 | BM65: =BM66+BM67 -> 0 | BN65: =BN66+BN67 -> 0 | BO65: =BO66+BO67 -> 0
B66: прочие потребители | C66: =D66+E66+F66+G66 -> 0 | D66: =D53+D56+D59+D62 -> 0 | E66: 0 | F66: 0 | G66: 0 | H66: =I66+J66+K66+L66 -> 0 | I66: =I53+I56+I59+I62 -> 0 | J66: 0 | K66: 0 | L66: 0 | M66: =N66+O66+P66+Q66 -> 0 | N66: =N53+N56+N59+N62 -> 0 | O66: 0 | P66: 0 | Q66: 0 | R66: =S66+T66+U66+V66 -> 0 | S66: =S53+S56+S59+S62 -> 0 | T66: 0 | U66: 0 | V66: 0 | W66: =X66+Y66+Z66+AA66 -> 0 | X66: =X53+X56+X59+X62 -> 0 | Y66: 0 | Z66: 0 | AA66: 0 | AB66: =AC66+AD66+AE66+AF66 -> 0 | AC66: =AC53+AC56+AC59+AC62 -> 0 | AD66: 0 | AE66: 0 | AF66: 0 | AG66: =AH66+AI66+AJ66+AK66 -> 0 | AH66: =AH53+AH56+AH59+AH62 -> 0 | AI66: 0 | AJ66: 0 | AK66: 0 | AL66: =AM66+AN66+AO66+AP66 -> 0 | AM66: =AM53+AM56+AM59+AM62 -> 0 | AN66: 0 | AO66: 0 | AP66: 0 | AQ66: =AR66+AS66+AT66+AU66 -> 0 | AR66: =AR53+AR56+AR59+AR62 -> 0 | AS66: 0 | AT66: 0 | AU66: 0 | AV66: =AW66+AX66+AY66+AZ66 -> 0 | AW66: =AW53+AW56+AW59+AW62 -> 0 | AX66: 0 | AY66: 0 | AZ66: 0 | BA66: =BB66+BC66+BD66+BE66 -> 0 | BB66: =BB53+BB56+BB59+BB62 -> 0 | BC66: 0 | BD66: 0 | BE66: 0 | BF66: =BG66+BH66+BI66+BJ66 -> 0 | BG66: =BG53+BG56+BG59+BG62 -> 0 | BH66: 0 | BI66: 0 | BJ66: 0 | BK66: =BL66+BM66+BN66+BO66 -> 0 | BL66: =BL53+BL56+BL59+BL62 -> 0 | BM66: 0 | BN66: 0 | BO66: 0
B67: население | C67: =D67+E67+F67+G67 -> 0 | D67: 0 | E67: =E54+E57+E60+E63 -> 0 | F67: 0 | G67: =G54+G57+G60+G63 -> 0 | H67: =I67+J67+K67+L67 -> 0 | I67: 0 | J67: 0 | K67: 0 | L67: 0 | M67: =N67+O67+P67+Q67 -> 0 | N67: 0 | O67: 0 | P67: 0 | Q67: 0 | R67: =S67+T67+U67+V67 -> 0 | S67: 0 | T67: 0 | U67: 0 | V67: 0 | W67: =X67+Y67+Z67+AA67 -> 0 | X67: 0 | Y67: 0 | Z67: 0 | AA67: 0 | AB67: =AC67+AD67+AE67+AF67 -> 0 | AC67: 0 | AD67: 0 | AE67: 0 | AF67: 0 | AG67: =AH67+AI67+AJ67+AK67 -> 0 | AH67: 0 | AI67: 0 | AJ67: 0 | AK67: 0 | AL67: =AM67+AN67+AO67+AP67 -> 0 | AM67: 0 | AN67: 0 | AO67: 0 | AP67: 0 | AQ67: =AR67+AS67+AT67+AU67 -> 0 | AR67: 0 | AS67: 0 | AT67: 0 | AU67: 0 | AV67: =AW67+AX67+AY67+AZ67 -> 0 | AW67: 0 | AX67: 0 | AY67: 0 | AZ67: 0 | BA67: =BB67+BC67+BD67+BE67 -> 0 | BB67: 0 | BC67: 0 | BD67: 0 | BE67: 0 | BF67: =BG67+BH67+BI67+BJ67 -> 0 | BG67: 0 | BH67: 0 | BI67: 0 | BJ67: 0 | BK67: =BL67+BM67+BN67+BO67 -> 0 | BL67: 0 | BM67: 0 | BN67: 0 | BO67: 0
B69: Руководитель организации | G69: =#REF! -> 

Sheet Баланс мощности
A3: Электрическая мощность по диапазонам напряжения
A4: =#REF! -> 
P5: МВт
A6: № п.п. | B6: Показатели | C6: Принято регулирующим органом на 2017 год | H6: Факт за 2017 год | M6: По данным организации на 2019 год | R6: Принято регулирующим органом на 2019 год
C7: Всего | D7: ВН | E7: СН1 | F7: СН2 | G7: НН | H7: Всего | I7: ВН | J7: СН1 | K7: СН2 | L7: НН | M7: Всего | N7: ВН | O7: СН1 | P7: СН2 | Q7: НН | R7: Всего | S7: ВН | T7: СН1 | U7: СН2 | V7: НН
A8: 1 | B8: 2 | C8: 3 | D8: 4 | E8: 5 | F8: 6 | G8: 7 | H8: 8 | I8: 9 | J8: 10 | K8: 11 | L8: 12 | M8: 13 | N8: 14 | O8: 15 | P8: 16 | Q8: 17 | R8: 18 | S8: 19 | T8: 20 | U8: 21 | V8: 22
A9: 1. | B9: Поступление мощности в сеть , ВСЕГО | C9: =C19+C21+C22 -> 22 | D9: =D15+D16+D17+D18 -> 22 | E9: =E10+E15+E16+E17+E18 -> 0 | F9: =F10+F15+F16+F17+F18 -> 22 | G9: =G10+G15+G16+G17+G18 -> 20.5744 | H9: =H19+H21+H22 -> 22 | I9: =I15+I16+I17+I18 -> 22 | J9: =J10+J15+J16+J17+J18 -> 0 | K9: =K10+K15+K16+K17+K18 -> 22 | L9: =L10+L15+L16+L17+L18 -> 20.5744 | M9: =M19+M21+M22 -> 22 | N9: =N15+N16+N17+N18 -> 22 | O9: =O10+O15+O16+O17+O18 -> 0 | P9: =P10+P15+P16+P17+P18 -> 22 | Q9: =Q10+Q15+Q16+Q17+Q18 -> 20.5744 | R9: =R19+R21+R22 -> 22 | S9: =S15+S16+S17+S18 -> 22 | T9: =T10+T15+T16+T17+T18 -> 0 | U9: =U10+U15+U16+U17+U18 -> 22 | V9: =V10+V15+V16+V17+V18 -> 20.5744
A10: 1.1. | B10: из смежной сети, всего | C10: х | D10: х | E10: =E12 -> 0 | F10: =F12+F13 -> 22 | G10: =G12+G13+G14 -> 20.5744 | H10: х | I10: х | J10: =J12 -> 0 | K10: =K12+K13 -> 22 | L10: =L12+L13+L14 -> 20.5744 | M10: х | N10: х | O10: =O12 -> 0 | P10: =P12+P13 -> 22 | Q10: =Q12+Q13+Q14 -> 20.5744 | R10: х | S10: х | T10: =T12 -> 0 | U10: =U12+U13 -> 22 | V10: =V12+V13+V14 -> 20.5744
B11: в том числе из сети | C11: х | D11: х | E11: х | F11: х | G11: х | H11: х | I11: х | J11: х | K11: х | L11: х | M11: х | N11: х | O11: х | P11: х | Q11: х | R11: х | S11: х | T11: х | U11: х | V11: х
A12: 1.1.1. | B12: ВН | C12: х | D12: х | F12: =D9-D19-D21-D22-G12-E12 -> 22 | H12: х | I12: х | K12: =I9-I19-I21-I22-L12-J12 -> 22 | M12: х | N12: х | P12: =N9-N19-N21-N22-Q12-O12 -> 22 | R12: х | S12: х | U12: =S9-S19-S21-S22-V12-T12 -> 22
A13: 1.1.2. | B13: СН1 | C13: х | D13: х | E13: х | F13: =E9-E19-E21-E22-G13 -> 0 | H13: х | I13: х | J13: х | K13: =J9-J19-J21-J22-L13 -> 0 | M13: х | N13: х | O13: х | P13: =O9-O19-O21-O22-Q13 -> 0 | R13: х | S13: х | T13: х | U13: =T9-T19-T21-T22-V13 -> 0
A14: 1.1.3. | B14: СН2 | C14: х | D14: х | E14: х | F14: х | G14: =F9-F19-F21-F22 -> 20.5744 | H14: х | I14: х | J14: х | K14: х | L14: =K9-K19-K21-K22 -> 20.5744 | M14: х | N14: х | O14: х | P14: х | Q14: =P9-P19-P21-P22 -> 20.5744 | R14: х | S14: х | T14: х | U14: х | V14: =U9-U19-U21-U22 -> 20.5744
A15: 1.2. | B15: от электростанций | C15: =SUM(D15:G15) -> 0 | H15: =SUM(I15:L15) -> 0 | M15: =SUM(N15:Q15) -> 0 | R15: =SUM(S15:V15) -> 0
A16: 1.3. | B16: от ОАО "ФСК ЕЭС" | C16: =SUM(D16:G16) -> 22 | D16: 22 | H16: =SUM(I16:L16) -> 22 | I16: 22 | M16: =SUM(N16:Q16) -> 22 | N16: 22 | R16: =SUM(S16:V16) -> 22 | S16: 22
A17: 1.4. | B17: от филиала "Владимирэнерго" ОАО "МРСК Центра и Приволжья" | C17: =SUM(D17:G17) -> 0 | H17: =SUM(I17:L17) -> 0 | M17: =SUM(N17:Q17) -> 0 | R17: =SUM(S17:V17) -> 0
A18: 1.5. | B18: от других сетевых организаций | C18: =SUM(D18:G18) -> 0 | H18: =SUM(I18:L18) -> 0 | M18: =SUM(N18:Q18) -> 0 | R18: =SUM(S18:V18) -> 0
A19: 2. | B19: Потери мощности в сети | C19: =SUM(D19:G19) -> 4.17845472 | D19: =D9*D20/100 -> 0 | E19: =E9*E20/100 -> 0 | F19: =F9*F20/100 -> 1.4256 | G19: =G9*G20/100 -> 2.75285472 | H19: =SUM(I19:L19) -> 4.17845472 | I19: =I9*I20/100 -> 0 | J19: =J9*J20/100 -> 0 | K19: =K9*K20/100 -> 1.4256 | L19: =L9*L20/100 -> 2.75285472 | M19: =SUM(N19:Q19) -> 4.17845472 | N19: =N9*N20/100 -> 0 | O19: =O9*O20/100 -> 0 | P19: =P9*P20/100 -> 1.4256 | Q19: =Q9*Q20/100 -> 2.75285472 | R19: =SUM(S19:V19) -> 4.17845472 | S19: =S9*S20/100 -> 0 | T19: =T9*T20/100 -> 0 | U19: =U9*U20/100 -> 1.4256 | V19: =V9*V20/100 -> 2.75285472
A20: 2.1. | B20: то же в % (п.2./п.1.) | C20: =IF(C9=0,0,C19/C9*100) -> 18.992976 | D20: ='Баланс энергии'!D20 -> 0 | E20: ='Баланс энергии'!E20 -> 0 | F20: ='Баланс энергии'!F20 -> 6.48 | G20: 13.38 | H20: =IF(H9=0,0,H19/H9*100) -> 18.992976 | I20: ='Баланс энергии'!S20 -> 0 | J20: ='Баланс энергии'!T20 -> 0 | K20: ='Баланс энергии'!U20 -> 6.48 | L20: 13.38 | M20: =IF(M9=0,0,M19/M9*100) -> 18.992976 | N20: ='Баланс энергии'!AW20 -> 0 | O20: ='Баланс энергии'!AX20 -> 0 | P20: ='Баланс энергии'!AY20 -> 6.48 | Q20: 13.38 | R20: =IF(R9=0,0,R19/R9*100) -> 18.992976 | S20: ='Баланс энергии'!BL20 -> 0 | T20: ='Баланс энергии'!BM20 -> 0 | U20: ='Баланс энергии'!BN20 -> 6.48 | V20: 13.38
A21: 3. | B21: Расход электроэнергии на производственные и хознужды | C21: =SUM(D21:G21) -> 0 | H21: =SUM(I21:L21) -> 0 | M21: =SUM(N21:Q21) -> 0 | R21: =SUM(S21:V21) -> 0
A22: 4. | B22: Полезный отпуск из сети | C22: =SUM(D22:G22) -> 17.82154528 | D22: =D23+D24+D25 -> 0 | E22: =E23+E24+E25 -> 0 | F22: =F23+F24+F25 -> 0 | G22: =G9-G19-G21 -> 17.82154528 | H22: =SUM(I22:L22) -> 17.82154528 | I22: =I23+I24+I25 -> 0 | J22: =J23+J24+J25 -> 0 | K22: =K23+K24+K25 -> 0 | L22: =L9-L19-L21 -> 17.82154528 | M22: =SUM(N22:Q22) -> 17.82154528 | N22: =N23+N24+N25 -> 0 | O22: =O23+O24+O25 -> 0 | P22: =P23+P24+P25 -> 0 | Q22: =Q9-Q19-Q21 -> 17.82154528 | R22: =SUM(S22:V22) -> 17.82154528 | S22: =S23+S24+S25 -> 0 | T22: =T23+T24+T25 -> 0 | U22: =U23+U24+U25 -> 0 | V22: =V9-V19-V21 -> 17.82154528
A23: 4.1. | B23: потребителям, присоединенным к сети | C23: =SUM(D23:G23) -> 17.8215 | G23: 17.8215 | H23: =SUM(I23:L23) -> 17.8215 | L23: 17.8215 | M23: =SUM(N23:Q23) -> 17.8215 | Q23: 17.8215 | R23: =SUM(S23:V23) -> 17.8215 | V23: 17.8215
A24: 4.2. | B24: переток в филиал "Владимирэнерго" ОАО "МРСК Центра и Приволжья" | C24: =SUM(D24:G24) -> 0 | H24: =SUM(I24:L24) -> 0 | M24: =SUM(N24:Q24) -> 0 | R24: =SUM(S24:V24) -> 0
A25: 4.3. | B25: переток в другие сетевые организации | C25: =SUM(D25:G25) -> 0 | H25: =SUM(I25:L25) -> 0 | M25: =SUM(N25:Q25) -> 0 | R25: =SUM(S25:V25) -> 0
B26: Проверка | D26: =D9-D19-D21-D23-D24-D25-E12-F12-G12 -> 0 | E26: =E9-E19-E21-E23-E24-E25-F13-G13 -> 0 | F26: =F9-F19-F21-F23-F24-F25-G14 -> 0 | G26: =G9-G19-G21-G23-G24-G25 -> 4.528e-05 | I26: =I9-I19-I21-I23-I24-I25-J12-K12-L12 -> 0 | J26: =J9-J19-J21-J23-J24-J25-K13-L13 -> 0 | K26: =K9-K19-K21-K23-K24-K25-L14 -> 0 | L26: =L9-L19-L21-L23-L24-L25 -> 4.528e-05 | N26: =N9-N19-N21-N23-N24-N25-O12-P12-Q12 -> 0 | O26: =O9-O19-O21-O23-O24-O25-P13-Q13 -> 0 | P26: =P9-P19-P21-P23-P24-P25-Q14 -> 0 | Q26: =Q9-Q19-Q21-Q23-Q24-Q25 -> 4.528e-05 | S26: =S9-S19-S21-S23-S24-S25-T12-U12-V12 -> 0 | T26: =T9-T19-T21-T23-T24-T25-U13-V13 -> 0 | U26: =U9-U19-U21-U23-U24-U25-V14 -> 0 | V26: =V9-V19-V21-V23-V24-V25 -> 4.528e-05
B28: Примечание
B30: Расшифровка п. 1.5. (Поступление от других сетевых организаций)
A31: № | B31: Наименование других сетевых организаций | C31: Всего | D31: ВН | E31: СН1 | F31: СН2 | G31: НН | H31: Всего | I31: ВН | J31: СН1 | K31: СН2 | L31: НН | M31: Всего | N31: ВН | O31: СН1 | P31: СН2 | Q31: НН | R31: Всего | S31: ВН | T31: СН1 | U31: СН2 | V31: НН
C32: =SUM(D32:G32) -> 0 | H32: =SUM(I32:L32) -> 0 | M32: =SUM(N32:Q32) -> 0 | R32: =SUM(S32:V32) -> 0
C33: =SUM(D33:G33) -> 0 | H33: =SUM(I33:L33) -> 0 | M33: =SUM(N33:Q33) -> 0 | R33: =SUM(S33:V33) -> 0
B34: Добавить
B35: Итого | C35: =SUM(C32:C33) -> 0 | D35: 0 | E35: 0 | F35: 0 | G35: 0 | H35: 0 | I35: 0 | J35: 0 | K35: 0 | L35: 0 | M35: 0 | N35: 0 | O35: 0 | P35: 0 | Q35: 0 | R35: 0 | S35: 0 | T35: 0 | U35: 0 | V35: 0
B37: Расшифровка п. 4.3. (Полезный отпуск - переток в другие сетевые организации)
A38: № | B38: Наименование других сетевых организаций | C38: Всего | D38: ВН | E38: СН1 | F38: СН2 | G38: НН | H38: Всего | I38: ВН | J38: СН1 | K38: СН2 | L38: НН | M38: Всего | N38: ВН | O38: СН1 | P38: СН2 | Q38: НН | R38: Всего | S38: ВН | T38: СН1 | U38: СН2 | V38: НН
C39: =SUM(D39:G39) -> 0 | H39: =SUM(I39:L39) -> 0 | M39: =SUM(N39:Q39) -> 0 | R39: =SUM(S39:V39) -> 0
C40: =SUM(D40:G40) -> 0 | H40: =SUM(I40:L40) -> 0 | M40: =SUM(N40:Q40) -> 0 | R40: =SUM(S40:V40) -> 0
C41: =SUM(D41:G41) -> 0 | H41: =SUM(I41:L41) -> 0 | M41: =SUM(N41:Q41) -> 0 | R41: =SUM(S41:V41) -> 0
B42: Добавить
B43: Итого | C43: =SUM(C39:C41) -> 0 | D43: =SUM(D39:D41) -> 0 | E43: =SUM(E39:E41) -> 0 | F43: =SUM(F39:F41) -> 0 | G43: =SUM(G39:G41) -> 0 | H43: =SUM(H39:H41) -> 0 | I43: 0 | J43: 0 | K43: 0 | L43: 0 | M43: 0 | N43: 0 | O43: 0 | P43: 0 | Q43: 0 | R43: 0 | S43: 0 | T43: 0 | U43: 0 | V43: 0
B45: Расшифровка п. 4.1. (Полезный отпуск потребителям, присоединенным к сети)
A46: № | B46: Наименование сбытовых организаций | C46: Всего | D46: ВН | E46: СН1 | F46: СН2 | G46: НН | H46: Всего | I46: ВН | J46: СН1 | K46: СН2 | L46: НН | M46: Всего | N46: ВН | O46: СН1 | P46: СН2 | Q46: НН | R46: Всего | S46: ВН | T46: СН1 | U46: СН2 | V46: НН
A47: 1. | B47: ОАО "Владимирэнергосбыт" всего, в том числе: | C47: =D47+E47+F47+G47 -> 0 | D47: =D48+D49 -> 0 | E47: =E48+E49 -> 0 | F47: =F48+F49 -> 0 | G47: =G48+G49 -> 0 | H47: =I47+J47+K47+L47 -> 0 | I47: =I48+I49 -> 0 | J47: =J48+J49 -> 0 | K47: =K48+K49 -> 0 | L47: =L48+L49 -> 0 | M47: =N47+O47+P47+Q47 -> 0 | N47: =N48+N49 -> 0 | O47: =O48+O49 -> 0 | P47: =P48+P49 -> 0 | Q47: =Q48+Q49 -> 0 | R47: =S47+T47+U47+V47 -> 0 | S47: =S48+S49 -> 0 | T47: =T48+T49 -> 0 | U47: =U48+U49 -> 0 | V47: =V48+V49 -> 0
A48: 1.1. | B48: прочие потребители | C48: =D48+E48+F48+G48 -> 0 | H48: =I48+J48+K48+L48 -> 0 | M48: =N48+O48+P48+Q48 -> 0 | R48: =S48+T48+U48+V48 -> 0
A49: 1.2. | B49: население | C49: 0 | H49: 0 | M49: 0 | R49: 0
A50: 2. | B50: ОАО "ВКС" всего, в том числе: | C50: 0 | D50: =D51+D52 -> 0 | E50: =E51+E52 -> 0 | F50: =F51+F52 -> 0 | G50: =G51+G52 -> 0 | H50: 0 | I50: =I51+I52 -> 0 | J50: =J51+J52 -> 0 | K50: =K51+K52 -> 0 | L50: =L51+L52 -> 0 | M50: 0 | N50: =N51+N52 -> 0 | O50: =O51+O52 -> 0 | P50: =P51+P52 -> 0 | Q50: =Q51+Q52 -> 0 | R50: 0 | S50: =S51+S52 -> 0 | T50: =T51+T52 -> 0 | U50: =U51+U52 -> 0 | V50: =V51+V52 -> 0
A51: 2.1. | B51: прочие потребители | C51: 0 | H51: 0 | M51: 0 | R51: 0
A52: 2.2. | B52: население | C52: 0 | H52: 0 | M52: 0 | R52: 0
A53: 3. | B53: ОАО "Русэнергосбыт" | C53: 0 | D53: =D54+D55 -> 0 | E53: =E54+E55 -> 0 | F53: =F54+F55 -> 0 | G53: =G54+G55 -> 0 | H53: 0 | I53: =I54+I55 -> 0 | J53: =J54+J55 -> 0 | K53: =K54+K55 -> 0 | L53: =L54+L55 -> 0 | M53: 0 | N53: =N54+N55 -> 0 | O53: =O54+O55 -> 0 | P53: =P54+P55 -> 0 | Q53: =Q54+Q55 -> 0 | R53: 0 | S53: =S54+S55 -> 0 | T53: =T54+T55 -> 0 | U53: =U54+U55 -> 0 | V53: =V54+V55 -> 0
A54: 3.1. | B54: прочие потребители | C54: 0 | H54: 0 | M54: 0 | R54: 0
A55: 3.2. | B55: население | C55: 0 | H55: 0 | M55: 0 | R55: 0
A56: 4. | B56: ОАО "Оборонэнергосбыт" | C56: 0 | D56: =D57+D58 -> 0 | E56: =E57+E58 -> 0 | F56: =F57+F58 -> 0 | G56: =G57+G58 -> 0 | H56: 0 | I56: =I57+I58 -> 0 | J56: =J57+J58 -> 0 | K56: =K57+K58 -> 0 | L56: =L57+L58 -> 0 | M56: 0 | N56: =N57+N58 -> 0 | O56: =O57+O58 -> 0 | P56: =P57+P58 -> 0 | Q56: =Q57+Q58 -> 0 | R56: 0 | S56: =S57+S58 -> 0 | T56: =T57+T58 -> 0 | U56: =U57+U58 -> 0 | V56: =V57+V58 -> 0
A57: 4.1. | B57: прочие потребители | C57: 0 | H57: 0 | M57: 0 | R57: 0
A58: 4.2. | B58: население | C58: 0 | H58: 0 | M58: 0 | R58: 0
A59: Добавить
B60: Итого всего, в том числе: | C60: =D60+E60+F60+G60 -> 0 | D60: =D61+D62 -> 0 | E60: =E61+E62 -> 0 | F60: =F61+F62 -> 0 | G60: =G61+G62 -> 0 | H60: =I60+J60+K60+L60 -> 0 | I60: =I61+I62 -> 0 | J60: =J61+J62 -> 0 | K60: =K61+K62 -> 0 | L60: =L61+L62 -> 0 | M60: =N60+O60+P60+Q60 -> 0 | N60: =N61+N62 -> 0 | O60: =O61+O62 -> 0 | P60: =P61+P62 -> 0 | Q60: =Q61+Q62 -> 0 | R60: =S60+T60+U60+V60 -> 0 | S60: =S61+S62 -> 0 | T60: =T61+T62 -> 0 | U60: =U61+U62 -> 0 | V60: =V61+V62 -> 0
B61: прочие потребители | C61: =D61+E61+F61+G61 -> 0 | D61: =D48+D51+D54+D57 -> 0 | E61: =E48+E51+E54+E57 -> 0 | F61: 0 | G61: 0 | H61: =I61+J61+K61+L61 -> 0 | I61: =I48+I51+I54+I57 -> 0 | J61: =J48+J51+J54+J57 -> 0 | K61: 0 | L61: 0 | M61: =N61+O61+P61+Q61 -> 0 | N61: =N48+N51+N54+N57 -> 0 | O61: =O48+O51+O54+O57 -> 0 | P61: 0 | Q61: 0 | R61: =S61+T61+U61+V61 -> 0 | S61: =S48+S51+S54+S57 -> 0 | T61: 0 | U61: 0 | V61: 0
B62: население | C62: =D62+E62+F62+G62 -> 0 | D62: =D49+D52+D55+D58 -> 0 | E62: 0 | F62: 0 | G62: 0 | H62: =I62+J62+K62+L62 -> 0 | I62: =I49+I52+I55+I58 -> 0 | J62: 0 | K62: 0 | L62: 0 | M62: =N62+O62+P62+Q62 -> 0 | N62: =N49+N52+N55+N58 -> 0 | O62: 0 | P62: 0 | Q62: 0 | R62: =S62+T62+U62+V62 -> 0 | S62: 0 | T62: 0 | U62: 0 | V62: 0
B64: Руководитель организации | G64: =#REF! -> 
B66: Справочная информация:
B67: Фактические данные по мощности заполняются по данным приборов учета электрической мощности, в случае отсутствия приборов учета по результатам контрольных замеров мощности

Sheet Заявитель3 (hidden)
C1: Приложение 2 к Методическим указаниям, утвержденным приказом ФСТ от 11.09.2014 г. №215-э/1
A3: Расчет размера расходов, связанных с предоставлением беспроцентной рассрочки (для конкретного заявителя)
B5: (Контрагент (наименование), № договора ТП, Дата заключения договора)
A7: N п/п | B7: Квартал, на который рассчитывается размер расходов, связанных с предоставлением беспроцентной рассрочки | C7: Расходы, связанные с предоставлением беспроцентной рассрочки, тыс. руб. (с учетом НДС) | H7: Номер квартала i
C8: в отношении суммарного размера платы за технологическое присоединение в 1 квартале | D8: в отношении суммарного размера платы за технологическое присоединение во 2 квартале | E8: в отношении суммарного размера платы за технологическое присоединение в 3 квартале | F8: в отношении суммарного размера платы за технологическое присоединение в 4 квартале | G8: всего в год
A9: 1 | B9: =CONCATENATE("1 год (",$B$34,"г.):") -> 1 год (г.): | C9: =SUM(C10:C13) -> 0 | D9: =SUM(D10:D13) -> 0 | E9: =SUM(E10:E13) -> 0 | F9: =SUM(F10:F13) -> 0 | G9: =SUM(C9:F9) -> 0
A10: 1.1. | B10: 1 квартал | C10: =IF($H10>=$B$32,Заявитель3!$B$33*0.95*((12+$B$32-$H10)/12)*($B$31/4),0) -> 0 | G10: 0 | H10: 1
A11: 1.2. | B11: 2 квартал | D11: =IF($H11>=$B$32,Заявитель3!$B$33*0.95*((12+$B$32-$H11)/12)*($B$31/4),0) -> 0 | G11: 0 | H11: 2
A12: 1.3. | B12: 3 квартал | E12: =IF($H12>=$B$32,Заявитель3!$B$33*0.95*((12+$B$32-$H12)/12)*($B$31/4),0) -> 0 | G12: 0 | H12: 3
A13: 1.4. | B13: 4 квартал | F13: =IF($H13>=$B$32,Заявитель3!$B$33*0.95*((12+$B$32-$H13)/12)*($B$31/4),0) -> 0 | G13: 0 | H13: 4
A14: 2 | B14: =CONCATENATE("1 год (",$B$34+1,"г.):") -> 1 год (1г.): | C14: =SUM(C15:C18) -> 0 | D14: =SUM(D15:D18) -> 0 | E14: =SUM(E15:E18) -> 0 | F14: =SUM(F15:F18) -> 0 | G14: 0
A15: 2.1. | B15: 5 квартал | C15: =Заявитель3!$B$33*0.95*((12+$B$32-$H15)/12)*($B$31/4) -> 0 | G15: 0 | H15: 5
A16: 2.2. | B16: 6 квартал | D16: =Заявитель3!$B$33*0.95*((12+$B$32-$H16)/12)*($B$31/4) -> 0 | G16: 0 | H16: 6
A17: 2.3. | B17: 7 квартал | E17: =Заявитель3!$B$33*0.95*((12+$B$32-$H17)/12)*($B$31/4) -> 0 | G17: 0 | H17: 7
A18: 2.4. | B18: 8 квартал | F18: =Заявитель3!$B$33*0.95*((12+$B$32-$H18)/12)*($B$31/4) -> 0 | G18: 0 | H18: 8
A19: 3 | B19: =CONCATENATE("1 год (",$B$34+2,"г.):") -> 1 год (2г.): | C19: =SUM(C20:C23) -> 0 | D19: =SUM(D20:D23) -> 0 | E19: =SUM(E20:E23) -> 0 | F19: =SUM(F20:F23) -> 0 | G19: 0
A20: 3.1. | B20: 9 квартал | C20: =Заявитель3!$B$33*0.95*((12+$B$32-$H20)/12)*($B$31/4) -> 0 | G20: 0 | H20: 9
A21: 3.2. | B21: 10 квартал | D21: =Заявитель3!$B$33*0.95*((12+$B$32-$H21)/12)*($B$31/4) -> 0 | G21: 0 | H21: 10
A22: 3.3. | B22: 11 квартал | E22: =Заявитель3!$B$33*0.95*((12+$B$32-$H22)/12)*($B$31/4) -> 0 | G22: 0 | H22: 11
A23: 3.4. | B23: 12 квартал | F23: =Заявитель3!$B$33*0.95*((12+$B$32-$H23)/12)*($B$31/4) -> 0 | G23: 0 | H23: 12
A24: 4 | B24: =CONCATENATE("1 год (",$B$34+3,"г.):") -> 1 год (3г.): | C24: =SUM(C25:C27) -> 0 | D24: =SUM(D25:D27) -> 0 | E24: =SUM(E25:E27) -> 0 | F24: =SUM(F25:F27) -> 0 | G24: 0
A25: 4.1. | B25: 13 квартал | C25: =Заявитель3!$B$33*0.95*((12+$B$32-$H25)/12)*($B$31/4) -> 0 | G25: 0 | H25: 13
A26: 4.2. | B26: 14 квартал | D26: =IF((Заявитель3!$B$33*0.95*((12+$B$32-$H26)/12)*($B$31/4))<0,0,Заявитель3!$B$33*0.95*((12+$B$32-$H26)/12)*($B$31/4)) -> 0 | G26: 0 | H26: 14
A27: 4.3. | B27: 15 квартал | E27: =IF((Заявитель3!$B$33*0.95*((12+$B$32-$H27)/12)*($B$31/4))<0,0,Заявитель3!$B$33*0.95*((12+$B$32-$H27)/12)*($B$31/4)) -> 0 | G27: 0 | H27: 15
A28: 5 | B28: Итого | C28: =C9+C14+C19+C24 -> 0 | D28: =D9+D14+D19+D24 -> 0 | E28: =E9+E14+E19+E24 -> 0 | F28: =F9+F14+F19+F24 -> 0 | G28: =G9+G14+G19+G24 -> 0
A32: k
A34: Год закрытия договора
A36: Размера расходов, связанных с предоставлением беспроцентной рассрочки в 2019 году | G36: =IF(B34<2015,0,IF(B34=2015,G24,IF(B34=2016,G19,IF(B34=2017,G14)))) -> 0 | H36: тыс. руб.
A38: Размер расходов, связанных с предоставлением беспроцентной рассрочки, в i-м квартале в течение трехлетнего периода предоставления беспроцентной рассрочки рассчитывается по формуле (1):
D40: , (1)
A42: где:
A43: - суммарный размер платы за технологическое присоединение, начисляемый заявителям, которым предоставляется рассрочка, в квартале k периода регулирования (тыс. руб.);
A44: k - номер квартала по порядку в периоде регулирования, в который начисляется размер платы за технологическое присоединение (равен от 1 до 4);
A45: i - номер квартала по порядку, начиная с момента начисления размера платы за технологическое присоединение с условием предоставления беспроцентной рассрочки в квартале k, с учетом квартала, в котором произведены начисления, в течение трехлетнего периода предоставления беспроцентной рассрочки (равен от k до 12 + k - 1);
A46: - ставка рефинансирования Центрального банка Российской Федерации на дату представления сетевой организацией заявки на установление размера платы за технологическое присоединение в регулирующий орган.
A47: В случае отклонения фактического значения процентной ставки по кредитам, связанным с рассрочкой по оплате технологического присоединения, от ставки рефинансирования Центрального банка Российской Федерации, при расчете фактического размера расходов, связанных с предоставлением беспроцентной рассрочки, применяется величина процентной ставки в соответствии с пунктом 87 Основ ценообразования.
A49: Примечание:
A50: 1) Периодом предоставления беспроцентной рассрочки считается 3 года.
A51: 2) Размер расходов, связанных с предоставлением беспроцентной рассрочки, в каждый квартал периода регулирования в течение трехлетнего периода предоставления беспроцентной рассрочки в отношении планируемого к получению (фактически полученного) от заявителей суммарного размера платы за технологическое присоединение, определяется в соответствии с формулой (1) Методических указаний по определению выпадающих доходов, связанных с осуществлением технологического присоединения к электрическим сетям.
A52: 3) При расчете планируемых значений показателей при заполнении таблиц 1 и 2 применяется планируемая к получению величина суммарного размера платы за технологическое присоединение, подлежащего беспроцентной рассрочке.
A53: 4) При расчете фактических значений показателей при заполнении таблиц 1 и 2 применяется суммарная плата за технологическое присоединение, начисленная с беспроцентной рассрочкой в соответствии с заключенными договорами об осуществлении технологического присоединения к электрическим сетям.

Sheet Заявитель4 (hidden)
C1: Приложение 2 к Методическим указаниям, утвержденным приказом ФСТ от 11.09.2014 г. №215-э/1
A3: Расчет размера расходов, связанных с предоставлением беспроцентной рассрочки (для конкретного заявителя)
B5: (Контрагент (наименование), № договора ТП, Дата заключения договора)
A7: N п/п | B7: Квартал, на который рассчитывается размер расходов, связанных с предоставлением беспроцентной рассрочки | C7: Расходы, связанные с предоставлением беспроцентной рассрочки, тыс. руб. (с учетом НДС) | H7: Номер квартала i
C8: в отношении суммарного размера платы за технологическое присоединение в 1 квартале | D8: в отношении суммарного размера платы за технологическое присоединение во 2 квартале | E8: в отношении суммарного размера платы за технологическое присоединение в 3 квартале | F8: в отношении суммарного размера платы за технологическое присоединение в 4 квартале | G8: всего в год
A9: 1 | B9: =CONCATENATE("1 год (",$B$34,"г.):") -> 1 год (г.): | C9: =SUM(C10:C13) -> 0 | D9: =SUM(D10:D13) -> 0 | E9: =SUM(E10:E13) -> 0 | F9: =SUM(F10:F13) -> 0 | G9: =SUM(C9:F9) -> 0
A10: 1.1. | B10: 1 квартал | C10: =IF($H10>=$B$32,Заявитель4!$B$33*0.95*((12+$B$32-$H10)/12)*($B$31/4),0) -> 0 | G10: 0 | H10: 1
A11: 1.2. | B11: 2 квартал | D11: =IF($H11>=$B$32,Заявитель4!$B$33*0.95*((12+$B$32-$H11)/12)*($B$31/4),0) -> 0 | G11: 0 | H11: 2
A12: 1.3. | B12: 3 квартал | E12: =IF($H12>=$B$32,Заявитель4!$B$33*0.95*((12+$B$32-$H12)/12)*($B$31/4),0) -> 0 | G12: 0 | H12: 3
A13: 1.4. | B13: 4 квартал | F13: =IF($H13>=$B$32,Заявитель4!$B$33*0.95*((12+$B$32-$H13)/12)*($B$31/4),0) -> 0 | G13: 0 | H13: 4
A14: 2 | B14: =CONCATENATE("1 год (",$B$34+1,"г.):") -> 1 год (1г.): | C14: =SUM(C15:C18) -> 0 | D14: =SUM(D15:D18) -> 0 | E14: =SUM(E15:E18) -> 0 | F14: =SUM(F15:F18) -> 0 | G14: 0
A15: 2.1. | B15: 5 квартал | C15: =Заявитель4!$B$33*0.95*((12+$B$32-$H15)/12)*($B$31/4) -> 0 | G15: 0 | H15: 5
A16: 2.2. | B16: 6 квартал | D16: =Заявитель4!$B$33*0.95*((12+$B$32-$H16)/12)*($B$31/4) -> 0 | G16: 0 | H16: 6
A17: 2.3. | B17: 7 квартал | E17: =Заявитель4!$B$33*0.95*((12+$B$32-$H17)/12)*($B$31/4) -> 0 | G17: 0 | H17: 7
A18: 2.4. | B18: 8 квартал | F18: =Заявитель4!$B$33*0.95*((12+$B$32-$H18)/12)*($B$31/4) -> 0 | G18: 0 | H18: 8
A19: 3 | B19: =CONCATENATE("1 год (",$B$34+2,"г.):") -> 1 год (2г.): | C19: =SUM(C20:C23) -> 0 | D19: =SUM(D20:D23) -> 0 | E19: =SUM(E20:E23) -> 0 | F19: =SUM(F20:F23) -> 0 | G19: 0
A20: 3.1. | B20: 9 квартал | C20: =Заявитель4!$B$33*0.95*((12+$B$32-$H20)/12)*($B$31/4) -> 0 | G20: 0 | H20: 9
A21: 3.2. | B21: 10 квартал | D21: =Заявитель4!$B$33*0.95*((12+$B$32-$H21)/12)*($B$31/4) -> 0 | G21: 0 | H21: 10
A22: 3.3. | B22: 11 квартал | E22: =Заявитель4!$B$33*0.95*((12+$B$32-$H22)/12)*($B$31/4) -> 0 | G22: 0 | H22: 11
A23: 3.4. | B23: 12 квартал | F23: =Заявитель4!$B$33*0.95*((12+$B$32-$H23)/12)*($B$31/4) -> 0 | G23: 0 | H23: 12
A24: 4 | B24: =CONCATENATE("1 год (",$B$34+3,"г.):") -> 1 год (3г.): | C24: =SUM(C25:C27) -> 0 | D24: =SUM(D25:D27) -> 0 | E24: =SUM(E25:E27) -> 0 | F24: =SUM(F25:F27) -> 0 | G24: 0
A25: 4.1. | B25: 13 квартал | C25: =Заявитель4!$B$33*0.95*((12+$B$32-$H25)/12)*($B$31/4) -> 0 | G25: 0 | H25: 13
A26: 4.2. | B26: 14 квартал | D26: =IF((Заявитель4!$B$33*0.95*((12+$B$32-$H26)/12)*($B$31/4))<0,0,Заявитель4!$B$33*0.95*((12+$B$32-$H26)/12)*($B$31/4)) -> 0 | G26: 0 | H26: 14
A27: 4.3. | B27: 15 квартал | E27: =IF((Заявитель4!$B$33*0.95*((12+$B$32-$H27)/12)*($B$31/4))<0,0,Заявитель4!$B$33*0.95*((12+$B$32-$H27)/12)*($B$31/4)) -> 0 | G27: 0 | H27: 15
A28: 5 | B28: Итого | C28: =C9+C14+C19+C24 -> 0 | D28: =D9+D14+D19+D24 -> 0 | E28: =E9+E14+E19+E24 -> 0 | F28: =F9+F14+F19+F24 -> 0 | G28: =G9+G14+G19+G24 -> 0
A32: k
A34: Год закрытия договора
A36: Размера расходов, связанных с предоставлением беспроцентной рассрочки в 2019 году | G36: =IF(B34<2015,0,IF(B34=2015,G24,IF(B34=2016,G19,IF(B34=2017,G14)))) -> 0 | H36: тыс. руб.
A38: Размер расходов, связанных с предоставлением беспроцентной рассрочки, в i-м квартале в течение трехлетнего периода предоставления беспроцентной рассрочки рассчитывается по формуле (1):
D40: , (1)
A42: где:
A43: - суммарный размер платы за технологическое присоединение, начисляемый заявителям, которым предоставляется рассрочка, в квартале k периода регулирования (тыс. руб.);
A44: k - номер квартала по порядку в периоде регулирования, в который начисляется размер платы за технологическое присоединение (равен от 1 до 4);
A45: i - номер квартала по порядку, начиная с момента начисления размера платы за технологическое присоединение с условием предоставления беспроцентной рассрочки в квартале k, с учетом квартала, в котором произведены начисления, в течение трехлетнего периода предоставления беспроцентной рассрочки (равен от k до 12 + k - 1);
A46: - ставка рефинансирования Центрального банка Российской Федерации на дату представления сетевой организацией заявки на установление размера платы за технологическое присоединение в регулирующий орган.
A47: В случае отклонения фактического значения процентной ставки по кредитам, связанным с рассрочкой по оплате технологического присоединения, от ставки рефинансирования Центрального банка Российской Федерации, при расчете фактического размера расходов, связанных с предоставлением беспроцентной рассрочки, применяется величина процентной ставки в соответствии с пунктом 87 Основ ценообразования.
A49: Примечание:
A50: 1) Периодом предоставления беспроцентной рассрочки считается 3 года.
A51: 2) Размер расходов, связанных с предоставлением беспроцентной рассрочки, в каждый квартал периода регулирования в течение трехлетнего периода предоставления беспроцентной рассрочки в отношении планируемого к получению (фактически полученного) от заявителей суммарного размера платы за технологическое присоединение, определяется в соответствии с формулой (1) Методических указаний по определению выпадающих доходов, связанных с осуществлением технологического присоединения к электрическим сетям.
A52: 3) При расчете планируемых значений показателей при заполнении таблиц 1 и 2 применяется планируемая к получению величина суммарного размера платы за технологическое присоединение, подлежащего беспроцентной рассрочке.
A53: 4) При расчете фактических значений показателей при заполнении таблиц 1 и 2 применяется суммарная плата за технологическое присоединение, начисленная с беспроцентной рассрочкой в соответствии с заключенными договорами об осуществлении технологического присоединения к электрическим сетям.

Sheet НВВ для шаблона ЕИАС (hidden)
A2: Наименование организации | B2: Период | C2: Расчет коэффициента индексации | M2: Расчет подконтрольных расходов | AH2: Расчет неподконтрольных расходов | BB2: Расходы, связанные с компенсацией незапланированных расходов или полученного избытка | BC2: Итого НВВ на содержание сетей | BD2: в том числе | BF2: Доля стороннего отпуска в сеть от организаций, занимающихся несколькими видами деятельности (без собственных нужд) | BG2: Отношение НВВ на содержание сетей текущего года к предыдущему года | BH2: Поступление в сеть электроэнергии | BI2: Объем технологического расхода (потерь) | BJ2: Тариф на покупку потерь | BK2: Норматив техноло-гического расхода (потерь) электро-энергии | BL2: Итого расходов на оплату потерь | BM2: в том числе | BO2: Прирост расходов на оплату потерь текущего года к предыдущему году | BP2: Поступление в сеть мощности | BQ2: Уровень надежности реализуемых товаров (услуг) (П п) | BR2: Уровень качества реализуемых товаров (услуг) (П тсо) | BS2: Уровень качества реализуемых товаров (услуг) (П тпр)
C3: Инфляция | D3: Индекс эффективности операционных расходов | E3: Количество активов, всего | F3: ВН | G3: СН1 | H3: СН2 | I3: НН | J3: Индекс изменения количества активов | K3: Коэффициент эластичности затрат по росту активов | L3: Итого коэффициент индексации | M3: Материальные затраты | N3: Сырье, материалы, запасные части, инструмент, топливо | O3: Работы и услуги производственного характера (в т.ч. услуги сторонних организаций по содержанию сетей и распределительных устройств) | P3: Расходы на оплату труда | Q3: Прочие расходы, всего, в том числе: | R3: Ремонт основных фондов | S3: Оплата работ и услуг сторонних организаций | T3: услуги связи | U3: Расходы на услуги вневедомственной охраны и коммунального хозяйства | V3: Расходы на юридические и информационные услуги | W3: Расходы на аудиторские и консультационные услуги | X3: Транспортные услуги | Y3: Прочие услуги сторонних организаций | Z3: Расходы на командировки и представительские | AA3: Расходы на подготовку кадров | AB3: Расходы на обеспечение нормальных условий труда и мер по технике безопасности | AC3: Расходы на страхование | AD3: Другие прочие расходы | AE3: Электроэнергия на хоз. нужды | AF3: Подконтрольные расходы из прибыли | AG3: ИТОГО подконтрольные расходы | AH3: Оплата услуг ОАО "ФСК ЕЭС" | AI3: в том числе | AK3: Теплоэнергия | AL3: Аренда, всего | AM3: в том числе аренда объектов электро- сетевого комплекса | AN3: Налоги (без учета налога на прибыль), всего, в том числе: | AO3: плата за землю | AP3: Налог на имущество | AQ3: Прочие налоги и сборы | AR3: Отчисления на социальные нужды (ЕСН) | AS3: Прочие неподконтрольные расходы | AT3: Налог на прибыль, в том числе: | AU3: налог на прибыль на капитальные вложения | AV3: Выпадающие доходы по п.87 Основ ценообразования | AW3: Амортизация ОС | AX3: Прибыль на капитальные вложения | AY3: Возврат заемных средств, направляемый на финансирование капитальных вложений | AZ3: Проверка прибыли на капитальные вложения (не более 12% от НВВ на содержание сетей) | BA3: ИТОГО неподконтрольных расходов
AI4: Оплата услуг ОАО "ФСК ЕЭС" 1 полугодие | AJ4: Оплата услуг ОАО "ФСК ЕЭС" 2 полугодие | BD4: НВВ на 1 полугодие | BE4: НВВ на 2 полугодие | BM4: расходы на 1 полугодие | BN4: расходы на 2 полугодие
C5: % | D5: % | E5: у.е. | F5: у.е. | G5: у.е. | H5: у.е. | I5: у.е. | J5: % | M5: тыс.руб | N5: тыс.руб | O5: тыс.руб | P5: тыс.руб | Q5: тыс.руб | R5: тыс.руб | S5: тыс.руб | T5: тыс.руб | U5: тыс.руб | V5: тыс.руб | W5: тыс.руб | X5: тыс.руб | Y5: тыс.руб | Z5: тыс.руб | AA5: тыс.руб | AB5: тыс.руб | AC5: тыс.руб | AD5: тыс.руб | AE5: тыс.руб | AF5: тыс.руб | AG5: тыс.руб | AH5: тыс.руб | AI5: тыс.руб | AJ5: тыс.руб | AK5: тыс.руб | AL5: тыс.руб | AM5: тыс.руб | AN5: тыс.руб | AO5: тыс.руб | AP5: тыс.руб | AQ5: тыс.руб | AR5: тыс.руб | AS5: тыс.руб | AT5: тыс.руб | AU5: тыс.руб | AV5: тыс.руб | AW5: тыс.руб | AX5: тыс.руб | AY5: тыс.руб | AZ5: % | BA5: тыс.руб | BB5: тыс.руб | BC5: тыс.руб | BD5: тыс.руб | BE5: тыс.руб | BF5: % | BG5: % | BH5: млн.кВтч | BI5: млн.кВтч | BJ5: руб./МВтч | BK5: % | BL5: тыс.руб | BM5: тыс.руб | BN5: тыс.руб | BO5: % | BP5: МВт
A6: А | B6: Б | C6: 0.1 | D6: 0.2 | E6: 0.3 | F6: 0.3.1 | G6: 0.3.2 | H6: 0.3.3 | I6: 0.3.4 | J6: 0.4 | K6: 0.5 | L6: 0.6 | M6: 1.1 | N6: 1.1.1 | O6: 1.1.2 | P6: 1.2 | Q6: 1.3 | R6: 1.3.1 | S6: 1.3.2 | T6: 1.3.2.1 | U6: 1.3.2.2 | V6: 1.3.2.3 | W6: 1.3.2.4 | X6: 1.3.2.5 | Y6: 1.3.2.6 | Z6: 1.3.3 | AA6: 1.3.4 | AB6: 1.3.5 | AC6: 1.3.6 | AD6: 1.3.7 | AE6: 1.4 | AF6: 1.5 | AG6: 1.6 | AH6: 2.1 | AI6: 2.1.1 | AJ6: 2.1.2 | AK6: 2.2 | AL6: 2.3 | AM6: 2.3.1 | AN6: 2.4 | AO6: 2.4.1 | AP6: 2.4.2 | AQ6: 2.4.3 | AR6: 2.5 | AS6: 2.6 | AT6: 2.7 | AU6: 2.7.1 | AV6: 2.8 | AW6: 2.9 | AX6: 2.10 | AY6: 2.11 | AZ6: 2.12 | BA6: 2.13 | BB6: 3 | BC6: 4 | BD6: 4.1 | BE6: 4.2 | BF6: 5 | BG6: 6 | BH6: 7 | BI6: 8 | BJ6: 9 | BK6: 10 | BL6: 11 | BM6: 11.1 | BN6: 11.2 | BO6: 12 | BP6: 13 | BQ6: 14 | BR6: 15.1 | BS6: 15.2
A7: =#REF! ->  | B7: 2014 | E7: =SUM(F7:I7) -> 0 | M7: =SUM(N7:O7) -> 0 | Q7: =R7+S7+Z7+AA7+AB7+AC7+AD7+AE7+AF7 -> 0 | S7: =SUM(T7:Y7) -> 0 | AG7: =M7+P7+Q7 -> 0 | AH7: =AI7+AJ7 -> 0 | AN7: =SUM(AO7:AQ7) -> 0 | BA7: =AH7+AK7+AL7+AN7+AS7+AT7+AV7+AR7+AW7+AX7+AY7 -> 0 | BC7: =SUM(BA7,BB7,AG7) -> 0 | BF7: =nerr((BD7+BE7)/BC7) ->  | BK7: =IF(BH7=0,0,BI7/BH7) -> 0 | BL7: =BI7*BJ7 -> 0 | BN7: =BL7-BM7 -> 0
B8: 2015 | E8: 0 | J8: =IF(E7=0,0,(E8-E7)/E7) -> 0 | M8: 0 | Q8: 0 | S8: 0 | AG8: 0 | AH8: 0 | AN8: 0 | AZ8: =nerr((AX8+AY8)/(BC8-AH8-AU8-AX8-AY8-AM8)) ->  | BA8: 0 | BC8: 0 | BF8: =nerr((BD8+BE8)/BC8) ->  | BG8: =nerr((BC8-BC7)/BC7) ->  | BK8: 0 | BL8: 0 | BN8: 0 | BO8: =nerr((BL8-BL7)/BL7) -> 
B9: 2016 | E9: 0 | J9: =IF(E8=0,0,(E9-E8)/E8*K9) -> 0 | K9: 0.75 | L9: =(1+C9)*(1-D9)*(1+J9) -> 1 | M9: 0 | N9: =N8*$L9 -> 0 | O9: =O8*L9 -> 0 | P9: =P8*$L9 -> 0 | Q9: 0 | R9: =R8*$L9 -> 0 | S9: 0 | T9: =T8*$L9 -> 0 | U9: =U8*L9 -> 0 | V9: =V8*L9 -> 0 | W9: =W8*$L9 -> 0 | X9: =X8*$L9 -> 0 | Y9: 0 | Z9: 0 | AA9: 0 | AB9: 0 | AC9: 0 | AD9: 0 | AE9: 0 | AF9: 0 | AG9: 0 | AH9: 0 | AN9: 0 | AZ9: =nerr((AX9+AY9)/(BC9-AH9-AU9-AX9-AY9-AM9)) ->  | BA9: 0 | BC9: 0 | BF9: =nerr((BD9+BE9)/BC9) ->  | BG9: =nerr((BC9-BC8)/BC8) ->  | BK9: 0 | BL9: 0 | BN9: 0 | BO9: =nerr((BL9-BL8)/BL8) -> 
B10: 2017 план | C10: 0.047 | D10: =#REF! ->  | F10: =#REF! ->  | G10: =#REF! ->  | H10: =#REF! ->  | I10: =#REF! ->  | J10: =IF(E9=0,0,(E10-E9)/E9*K10) -> 0 | K10: 0.75 | L10: =(1+C10)*(1-D10)*(1+J10) ->  | N10: =N9*$L10 ->  | O10: =O9*L10 ->  | P10: =P9*$L10 ->  | R10: =R9*$L10 ->  | T10: =T9*$L10 ->  | U10: =U9*L10 ->  | V10: =V9*L10 ->  | W10: =W9*$L10 ->  | X10: =X9*$L10 ->  | Y10: =Y9*$L10 ->  | Z10: =Z9*$L10 ->  | AA10: =AA9*$L10 ->  | AB10: =AB9*$L10 ->  | AC10: =AC9*$L10 ->  | AD10: =AD9*$L10 ->  | AE10: =AE9*$L10 ->  | AF10: =AF9*$L10 ->  | AH10: 0 | AN10: 0 | AZ10: =nerr((AX10+AY10)/(BC10-AH10-AU10-AX10-AY10-AM10)) ->  | BA10: 0 | BF10: =nerr((BD10+BE10)/BC10) ->  | BG10: =nerr((BC10-BC9)/BC9) ->  | BK10: 0 | BL10: 0 | BN10: 0 | BO10: =nerr((BL10-BL9)/BL9) -> 
B11: 2018 план | C11: 0.037 | D11: =#REF! ->  | F11: =#REF! ->  | G11: =#REF! ->  | H11: =#REF! ->  | I11: =#REF! ->  | J11: =IF(E10=0,0,(E11-E10)/E10*K11) ->  | K11: 0.75 | L11: =(1+C11)*(1-D11)*(1+J11) ->  | AH11: 0 | AN11: 0 | AZ11: =nerr((AX11+AY11)/(BC11-AH11-AU11-AX11-AY11-AM11)) ->  | BA11: 0 | BF11: =nerr((BD11+BE11)/BC11) ->  | BG11: =nerr((BC11-BC10)/BC10) ->  | BK11: 0 | BL11: 0 | BN11: 0 | BO11: =nerr((BL11-BL10)/BL10) -> 
B12: 2019 план | C12: 0.04 | D12: =#REF! ->  | F12: =#REF! ->  | G12: =#REF! ->  | H12: =#REF! ->  | I12: =#REF! ->  | J12: =IF(E11=0,0,(E12-E11)/E11*K12) ->  | K12: 0.75 | L12: =(1+C12)*(1-D12)*(1+J12) ->  | M12: =SUM(N12:O12) ->  | AI12: =#REF! ->  | AJ12: =#REF! ->  | AK12: =#REF! ->  | AL12: =#REF! ->  | AM12: =#REF! ->  | AO12: =#REF! ->  | AP12: =#REF! ->  | AQ12: =#REF!+#REF! ->  | AR12: =#REF! ->  | AS12: =#REF! ->  | AT12: =#REF! ->  | AU12: =AX12/0.8*0.2 ->  | AV12: =#REF! ->  | AW12: =#REF! ->  | AX12: =#REF! ->  | AY12: =#REF! ->  | AZ12: =((AX12+AY12)/(BC12-AH12-AU12-AX12-AY12-AM12)) ->  | BB12: =#REF! ->  | BD12: =BC12*E16 ->  | BE12: =BC12-BD12 ->  | BF12: =((BD12+BE12)/BC12) ->  | BG12: =nerr((BC12-BC11)/BC11) ->  | BH12: ='Баланс энергии'!AV9 -> 145.372 | BI12: =#REF! ->  | BJ12: =#REF! ->  | BM12: =#REF! ->  | BO12: =nerr((BL12-BL11)/BL11) ->  | BP12: ='Баланс мощности'!M9 -> 22 | BQ12: =#REF! ->  | BR12: =#REF! ->  | BS12: =#REF! -> 
D15: разбивка на полугодия
D16: 2019 год
A17: Затраты сетевых организаций в 2019 году МИНИМУМ
D18: 2019 год | G18: ПРОВЕРКА
D19: 1 полугодие | E19: 2 полугодие | F19: год | G19: 1 полугодие | H19: 2 полугодие | I19: год
A20: 1 | B20: Покупная энергия на компенсацию потерь без учета потерь ФСК | C20: тыс.руб | D20: =#REF! ->  | E20: =#REF! ->  | F20: =#REF! ->  | G20: =D20-BM12 ->  | H20: =E20-BN12 ->  | I20: =F20-BL12 -> 
A21: 1.1 | B21: объем потерь в сетях | C21: млн.кВт.ч | D21: =#REF! ->  | E21: =#REF! ->  | F21: =#REF! ->  | I21: =BI12-F21 -> 
A22: 23 | B22: Неподконтрольные расходы (за исключением платы ФСК, амортизации ОС и прибыли на капитальные вложения) | C22: тыс.руб | D22: =D63-D74-D76-D64 ->  | E22: =E63-E74-E76-E64 ->  | F22: =E22+D22 ->  | I22: =F22-BA12-AH12-AW12-AX12 -> 
A23: 24 | B23: Операционные (подконтрольные ) расходы | C23: тыс.руб | D23: =D47 ->  | E23: =E47 ->  | F23: =E23+D23 ->  | I23: =F23-AG12 -> 
B24: в том числе:
A25: 24.1 | B25: Затраты на оплату труда | C25: тыс.руб | D25: =D48 ->  | E25: =E48 ->  | I25: =F25-P12 -> 
B26: в том числе:
A27: 24.1.1 | B27: на ремонтную программу | C27: тыс.руб
A28: 24.2 | B28: Ремонтная программа без учета оплаты труда и ЕСН | C28: тыс.руб | D28: =D50 ->  | E28: =E50 ->  | I28: =F28-R12 -> 
A29: 25 | B29: Амортизация ОС | C29: тыс.руб | D29: =D64 ->  | E29: =E64 ->  | I29: =F29-AW12 -> 
A30: 26 | B30: Прибыль на капитальные вложения | C30: тыс.руб | D30: =D76 ->  | E30: =E76 ->  | I30: =F30-AX12 -> 
A31: 27 | B31: Выпадающие доходы (за исключением выпадающих доходов по п.87 Основ ценообразования) | C31: тыс.руб | D31: =D79 ->  | E31: =E79 ->  | I31: =F31-BB12 -> 
A33: 28 | B33: Товарная продукция | C33: тыс.руб | D33: =D20+D22+D23+D29+D30+D31 ->  | E33: =E20+E22+E23+E29+E30+E31 ->  | I33: =F33-BC12-BL12 -> 
B34: в том числе:
A35: 28.1 | B35: расходы на реализацию инвестиционной программы (с налогами) | C35: тыс.руб | D35: =D37+D38 ->  | E35: =E37+E38 -> 
B36: в том числе:
A37: 28.1.1 | B37: инвестиционная программа | C37: тыс.руб | D37: =D76 ->  | E37: =E76 -> 
A38: 28.1.2 | B38: налог на прибыль | C38: тыс.руб | D38: =D72 ->  | E38: =E72 -> 
A39: 29 | B39: Полезный отпуск потребителям | C39: млн.кВт.ч | D39: ='Баланс энергии'!BA22-'Баланс энергии'!BA24 -> 64.77256079 | E39: ='Баланс энергии'!BF22-'Баланс энергии'!BF24 -> 60.37246921 | F39: 125.14503
A40: 29.1 | B40: справочно: генераторное напряжение | C40: млн.кВт.ч
A41: 30 | B41: Средний тариф с учетом ГН | C41: коп/кВт.ч
A42: 31 | B42: Объем условных единиц | C42: у.е. | D42: =E12 ->  | E42: =D42 ->  | F42: =E42 ->  | I42: =E12-E42 -> 
A43: 32 | B43: Стоимость обслуживания у.е. | C43: тыс.руб
D45: 2019 год
D46: 1 полугодие | E46: 2 полугодие | F46: год
A47: 1. | B47: Подконтрольные расходы | D47: =F47*$E$16 ->  | E47: =F47*$F$16 ->  | F47: =#REF! -> 
A48: 1.1. | B48: Расходы на оплату труда | F48: =#REF! -> 
A49: 1.2 | B49: Материалы | F49: =#REF! -> 
A50: 1.3 | B50: Ремонт основных фондов | F50: =#REF! -> 
A51: 1.4 | B51: Другие обоснованные подконтрольные расходы, в том числе: | F51: =#REF! -> 
A52: 1.4.1 | B52: Работы и услуги производственного характера | F52: =#REF! -> 
A53: 1.4.2 | B53: Работы и услуги непроизводственного характера | F53: =#REF! -> 
A54: 1.4.3 | B54: Обеспечение нормальных условий труда и техники безопасности | F54: =#REF! -> 
A55: 1.4.4. | B55: Расходы на командировки | F55: =#REF! -> 
A56: 1.4.5 | B56: Расходы на обучение персонала | F56: =#REF! -> 
A57: 1.4.6 | B57: Расходы на страхование | F57: =#REF! -> 
A58: 1.4.7 | B58: Расходы на услуги банков | F58: =#REF! -> 
A59: 1.4.8 | B59: Прочие обоснованные подконтрольные расходы | F59: =#REF! -> 
A60: 1.5 | B60: Расходы из прибыли, в том числе: | F60: =#REF! -> 
A61: 1.5.1 | B61: Расходы по коллективным договорам | F61: =#REF! -> 
A62: 1.5.2 | B62: Прочие обоснованные расходы из прибыли | F62: =#REF! -> 
A63: 2. | B63: Неподконтрольные расходы | F63: =#REF! -> 
A64: 2.1. | B64: Амортизация основных средств | F64: =#REF! -> 
A65: 2.2. | B65: Страховые взносы | F65: =#REF! -> 
A66: 2.3. | B66: Расходы на оплату услуг организаций, осуществляющие регулируемые виды деятельности | F66: =#REF! -> 
A67: 2.4. | B67: Налоги и сборы, в том числе: | F67: =#REF! -> 
A68: 2.4.1. | B68: Плата за землю | F68: =#REF! -> 
A69: 2.4.2. | B69: Транспортный налог | F69: =#REF! -> 
A70: 2.4.3. | B70: Налог на имущество | F70: =#REF! -> 
A71: 2.4.4. | B71: Плата за негативное воздействие на окружающую среду | F71: =#REF! -> 
A72: 2.4.5. | B72: Налог на прибыль | F72: =#REF! -> 
A73: 2.5. | B73: Плата за аренду имущества | F73: =#REF! -> 
A74: 2.6. | B74: Оплата услуг ОАО "ФСК ЕЭС" | F74: =#REF! -> 
A75: 2.7. | B75: Прочие обоснованные неподконтрольные расходы | F75: =#REF! -> 
A76: 2.8. | B76: Капитальные вложения производственного характера из прибыли | F76: =#REF! -> 
A77: 2.9. | B77: Расходы, связанные с компенсацией выпадающих доходов от льготного технологического присоединения | F77: =#REF! -> 
A78: 2.10. | B78: Расходы на возврат и обслуживание долгосрочных заемных средств, направляемых для финансирования капитальных вложений | F78: =#REF! -> 
A79: 3. | B79: Корректировка необходимой валовой выручки | F79: =#REF! -> 
A80: 3.1. | B80: Корректировка подконтрольных расходов | F80: =#REF! -> 
A81: 3.2. | B81: Корректировка неподконтрольных расходов | F81: =#REF! -> 
A82: 3.3. | B82: Корректировка НВВ с учетом изменения полезного отпуска и цен на электрическую энергию | F82: =#REF! -> 
A83: 3.4. | B83: Корректировка необходимой валовой выручки по доходам от осуществления регулируемой деятельности | F83: =#REF! -> 
A84: 3.5. | B84: Корректировка НВВ в связи с изменением (неисполнением) инвестиционной программы | F84: =#REF! -> 
A85: 3.6. | B85: Корректировка НВВ с учетом надежности и качества оказываемых услуг | F85: =#REF! -> 
A86: 4. | B86: ИТОГО необходимая валовая выручка на содержание электрических сетей | F86: =#REF! -> 

Sheet Выбор оценочного балла (hidden)
A2: Выбор оценочного балла
A4: Принимаемое значение (Ф / П * 100, % ) (гр.4 форм 2.1-2.3) | C4: Оценочный балл (гр.6 форм 2.1 - 2.3)
A5: прямая зависимость (гр.5 форм 2.1 - 2.3) | B5: обратная зависимость (гр.5 форм 2.1 - 2.3)
A6: гр.4 форм 2.1-2.3 < 80% | B6: гр.4 форм 2.1-2.3 > 120 % | C6: 3 балла - для всех пунктов форм 2.1 - 2.3 кроме: 0,75 баллов - для п. 2, 5, 6 формы 2.2 0,3 балла - для п. 3,4,7 формы 2.2
A7: 80 % ≤ гр.4 форм 2.1-2.3 ≤ 120 % | C7: 2 балла - для всех пунктов форм 2.1 - 2.3 кроме: 0,5 баллов - для п. 2, 5, 6 формы 2.2 0,2 балла - для п. 3,4,7 формы 2.2
A8: гр.4 форм 2.1-2.3 > 120 % | B8: гр.4 форм 2.1-2.3 < 80% | C8: 1 балл - для всех пунктов форм 2.1 - 2.3 кроме: 0,25 баллов - для п. 2, 5, 6 формы 2.2 0,1 балла - для п. 3,4,7 формы 2.2
